Workbook

Sheet Clavet
A1: =Kerrobert!A1 -> Group: Global WYAMZ - Monthly Monthly: 12/2019 Type: AVG 1 Hr.
A3: Date & Time | B3: Clavet | C3: Clavet | D3: Clavet | E3: Clavet | F3: Clavet | G3: Clavet | H3: Clavet | I3: Clavet | J3: Clavet | K3: Clavet
B4: NO | C4: NO2 | D4: NOX | E4: O3 | F4: PM25 | G4: PRECIP | H4: TEMPERAT | I4: WS | J4: WD | K4: RH
B5: ppb | C5: ppb | D5: ppb | E5: ppb | F5: ug/m3(L) | G5: mm | H5: C° | I5: m/s | J5: Deg | K5: %RH
A6: 2019/12/01 01:00:00 | B6: Z | C6: Z | D6: Z | E6: Z | F6: 4.497 | G6: 0 | H6: -9.619 | I6: 1.133 | J6: 175.922 | K6: 73.43
A7: 2019/12/01 02:00:00 | B7: 1.998 | C7: 2.883 | D7: 4.884 | E7: 22.082 | F7: 5.6 | G7: 0 | H7: -9.24 | I7: 1.702 | J7: 172.871 | K7: 73.525
A8: 2019/12/01 03:00:00 | B8: 0.28 | C8: 1.09 | D8: 1.371 | E8: 24.182 | F8: 5.114 | G8: 0 | H8: -9.247 | I8: 1.867 | J8: 183.083 | K8: 73.413
A9: 2019/12/01 04:00:00 | B9: 0.938 | C9: 1.584 | D9: 2.524 | E9: 23.707 | F9: 4.625 | G9: 0 | H9: -9.338 | I9: 1.844 | J9: 181.411 | K9: 74.742
A10: 2019/12/01 05:00:00 | B10: 0.947 | C10: 2.718 | D10: 3.666 | E10: 23.096 | F10: 4.369 | G10: 0 | H10: -9.218 | I10: 1.733 | J10: 168.611 | K10: 76.504
A11: 2019/12/01 06:00:00 | B11: 0.931 | C11: 1.474 | D11: 2.407 | E11: 23.248 | F11: 3.613 | G11: 0 | H11: -9.279 | I11: 2.15 | J11: 170.545 | K11: 78.392
A12: 2019/12/01 07:00:00 | B12: 0.869 | C12: 1.211 | D12: 2.08 | E12: 23.078 | F12: 3.106 | G12: 0 | H12: -9.511 | I12: 2.562 | J12: 172.268 | K12: 80.181
A13: 2019/12/01 08:00:00 | B13: 1.045 | C13: 2.048 | D13: 3.094 | E13: 21.289 | F13: 3.065 | G13: 0 | H13: -9.59 | I13: 2.459 | J13: 175.442 | K13: 79.993
A14: 2019/12/01 09:00:00 | B14: 0.835 | C14: 1.043 | D14: 1.877 | E14: 20.814 | F14: 4.782 | G14: 0 | H14: -9.565 | I14: 2.34 | J14: 173.191 | K14: 79.806
A15: 2019/12/01 10:00:00 | B15: 2.368 | C15: 2.798 | D15: 5.167 | E15: 19.319 | F15: 6.65 | G15: 0 | H15: -9.174 | I15: 2.363 | J15: 173.374 | K15: 79.748
A16: 2019/12/01 11:00:00 | B16: 1.496 | C16: 1.382 | D16: 2.878 | E16: 19.202 | F16: 6.458 | G16: 0 | H16: -9.109 | I16: 1.718 | J16: 166.951 | K16: 79.348
A17: 2019/12/01 12:00:00 | B17: 1.211 | C17: 1.225 | D17: 2.435 | E17: 18.867 | F17: 4.083 | G17: 0 | H17: -8.649 | I17: 1.306 | J17: 155.962 | K17: 74.908
A18: 2019/12/01 13:00:00 | B18: 1.539 | C18: 1.632 | D18: 3.17 | E18: 18.162 | F18: 2.548 | G18: 0 | H18: -7.767 | I18: 1.348 | J18: 144.98 | K18: 68.653
A19: 2019/12/01 14:00:00 | B19: 0.943 | C19: 1.003 | D19: 1.945 | E19: 18.509 | F19: 3.115 | G19: 0 | H19: -7.03 | I19: 1.506 | J19: 171.471 | K19: 66.014
A20: 2019/12/01 15:00:00 | B20: 0.914 | C20: 1.12 | D20: 2.032 | E20: 18.727 | F20: 3.682 | G20: 0 | H20: -6.544 | I20: 1.462 | J20: 171.124 | K20: 65.276
A21: 2019/12/01 16:00:00 | B21: 2.169 | C21: 2.6 | D21: 4.766 | E21: 17.242 | F21: 3.918 | G21: 0 | H21: -6.597 | I21: 1.122 | J21: 164.724 | K21: 64.884
A22: 2019/12/01 17:00:00 | B22: 1.124 | C22: 2.695 | D22: 3.817 | E22: 17.075 | F22: 5.396 | G22: 0 | H22: -7.884 | I22: 0.881 | J22: 149.993 | K22: 68.053
A23: 2019/12/01 18:00:00 | B23: 2.459 | C23: 7.302 | D23: 9.759 | E23: 11.477 | F23: 6.574 | G23: 0 | H23: -10.628 | I23: 0.48 | J23: 102.803 | K23: 71.832
A24: 2019/12/01 19:00:00 | B24: 0.732 | C24: 4.058 | D24: 4.788 | E24: 13.633 | F24: 6.622 | G24: 0 | H24: -12.957 | I24: 0.74 | J24: 94.259 | K24: 74.858
A25: 2019/12/01 20:00:00 | B25: 0.568 | C25: 3.856 | D25: 4.421 | E25: 13.365 | F25: 5.902 | G25: 0 | H25: -14.26 | I25: 0.807 | J25: 94.932 | K25: 74.207
A26: 2019/12/01 21:00:00 | B26: 0.483 | C26: 3.988 | D26: 4.468 | E26: 12.717 | F26: 4.96 | G26: 0 | H26: -14.521 | I26: 0.649 | J26: 97.916 | K26: 73.703
A27: 2019/12/01 22:00:00 | B27: 1.233 | C27: 7.131 | D27: 8.363 | E27: 9.063 | F27: 4.553 | G27: 0 | H27: -15.022 | I27: 0.46 | J27: 113.032 | K27: 72.404
A28: 2019/12/01 23:00:00 | B28: 0.444 | C28: 9.239 | D28: 9.681 | E28: 6.126 | F28: 4.101 | G28: 0 | H28: -15.637 | I28: 0.383 | J28: 84.969 | K28: 70.517
A29: 2019/12/02 00:00:00 | B29: Z | C29: Z | D29: Z | E29: Z | F29: 3.372 | G29: 0 | H29: -15.678 | I29: 0.384 | J29: 152.538 | K29: 69.375
A30: 2019/12/02 01:00:00 | B30: 3.606 | C30: 6.282 | D30: 9.885 | E30: 11.612 | F30: 2.748 | G30: 0 | H30: -13.831 | I30: 1.182 | J30: 176.827 | K30: 74.998
A31: 2019/12/02 02:00:00 | B31: 3.099 | C31: 4.395 | D31: 7.491 | E31: 14.418 | F31: 2.063 | G31: 0 | H31: -13.474 | I31: 0.887 | J31: 176.008 | K31: 73.955
A32: 2019/12/02 03:00:00 | B32: 1.524 | C32: 4.385 | D32: 5.905 | E32: 16.553 | F32: 1.912 | G32: 0 | H32: -12.424 | I32: 1.572 | J32: 199.074 | K32: 75.487
A33: 2019/12/02 04:00:00 | B33: 0.971 | C33: 3.639 | D33: 4.606 | E33: 17.867 | F33: 2.105 | G33: 0 | H33: -12.201 | I33: 1.787 | J33: 211.662 | K33: 74.819
A34: 2019/12/02 05:00:00 | B34: 1.273 | C34: 4.208 | D34: 5.478 | E34: 17.07 | F34: 3.661 | G34: 0 | H34: -12.245 | I34: 1.816 | J34: 220.616 | K34: 74.881
A35: 2019/12/02 06:00:00 | B35: 2.684 | C35: 4.993 | D35: 7.673 | E35: 15.768 | F35: 5.359 | G35: 0 | H35: -11.273 | I35: 1.803 | J35: 231.66 | K35: 74.371
A36: 2019/12/02 07:00:00 | B36: 3.626 | C36: 4.576 | D36: 8.199 | E36: 15.003 | F36: 6.241 | G36: 0 | H36: -10.749 | I36: 1.977 | J36: 231.102 | K36: 73.639
A37: 2019/12/02 08:00:00 | B37: 2.024 | C37: 5.561 | D37: 7.582 | E37: 15.085 | F37: 7.367 | G37: 0 | H37: -10.927 | I37: 1.859 | J37: 234.122 | K37: 73.683
A38: 2019/12/02 09:00:00 | B38: 5.473 | C38: 8.334 | D38: 13.804 | E38: 13.241 | F38: 10.743 | G38: 0 | H38: -9.873 | I38: 2.321 | J38: 242.583 | K38: 73.333
A39: 2019/12/02 10:00:00 | B39: 2.807 | C39: 6.27 | D39: 9.074 | E39: 14.041 | F39: 11.447 | G39: 0 | H39: -9.415 | I39: 2.59 | J39: 239.411 | K39: 72.244
A40: 2019/12/02 11:00:00 | B40: 2.972 | C40: 5.343 | D40: 8.311 | E40: 15.338 | F40: 12.743 | G40: 0 | H40: -8.521 | I40: 2.247 | J40: 223.353 | K40: 71.635
A41: 2019/12/02 12:00:00 | B41: 3.695 | C41: 5.601 | D41: 9.292 | E41: 16.397 | F41: 10.952 | G41: 0 | H41: -7.04 | I41: 2.417 | J41: 211.183 | K41: 70.401
A42: 2019/12/02 13:00:00 | B42: 2.283 | C42: 4.405 | D42: 6.686 | E42: 18.847 | F42: 9.672 | G42: 0 | H42: -5.191 | I42: 1.865 | J42: 220.365 | K42: 67.23
A43: 2019/12/02 14:00:00 | B43: 4.588 | C43: 5.621 | D43: 10.206 | E43: 20.242 | F43: 8.203 | G43: 0 | H43: -3.839 | I43: 1.841 | J43: 216.53 | K43: 63.866
A44: 2019/12/02 15:00:00 | B44: 3.175 | C44: 5.693 | D44: 8.866 | E44: 22.475 | F44: 7.063 | G44: 0 | H44: -3.098 | I44: 1.909 | J44: 220.815 | K44: 60.701
A45: 2019/12/02 16:00:00 | B45: 1.574 | C45: 5.716 | D45: 7.287 | E45: 23.331 | F45: 6.713 | G45: 0 | H45: -3.119 | I45: 2.383 | J45: 213.348 | K45: 64.489
A46: 2019/12/02 17:00:00 | B46: 1.14 | C46: 5.372 | D46: 6.507 | E46: 23.846 | F46: 6.097 | G46: 0 | H46: -3.121 | I46: 2.263 | J46: 213.589 | K46: 66.733
A47: 2019/12/02 18:00:00 | B47: 1.267 | C47: 6.98 | D47: 8.244 | E47: 22.909 | F47: 6.086 | G47: 0 | H47: -3.379 | I47: 2.55 | J47: 209.662 | K47: 67.215
A48: 2019/12/02 19:00:00 | B48: 1.167 | C48: 6.77 | D48: 7.935 | E48: 22.609 | F48: 6.049 | G48: 0 | H48: -4.597 | I48: 2.432 | J48: 209.422 | K48: 67.55
A49: 2019/12/02 20:00:00 | B49: 1.367 | C49: 6.079 | D49: 7.443 | E49: 23.604 | F49: 6.173 | G49: 0 | H49: -4.709 | I49: 2.159 | J49: 227.675 | K49: 66.277
A50: 2019/12/02 21:00:00 | B50: 1.02 | C50: 6.187 | D50: 7.205 | E50: 24.235 | F50: 6.54 | G50: 0 | H50: -4.411 | I50: 2.264 | J50: 237.924 | K50: 64.194
A51: 2019/12/02 22:00:00 | B51: 1.322 | C51: 7.189 | D51: 8.508 | E51: 22.484 | F51: 6.772 | G51: 0 | H51: -4.886 | I51: 2.144 | J51: 229.695 | K51: 64.844
A52: 2019/12/02 23:00:00 | B52: Z | C52: Z | D52: Z | E52: Z | F52: 7.159 | G52: 0 | H52: -6.115 | I52: 1.899 | J52: 214.003 | K52: 67.286
A53: 2019/12/03 00:00:00 | B53: 1.103 | C53: 6.01 | D53: 7.111 | E53: 20.715 | F53: 8.099 | G53: 0 | H53: -6.863 | I53: 2.311 | J53: 212.258 | K53: 68.617
A54: 2019/12/03 01:00:00 | B54: 1.962 | C54: 6.107 | D54: 8.065 | E54: 19.448 | F54: 10.094 | G54: 0 | H54: -7.613 | I54: 2.512 | J54: 205.366 | K54: 69.366
A55: 2019/12/03 02:00:00 | B55: 1.477 | C55: 6.326 | D55: 7.8 | E55: 19.739 | F55: 10.125 | G55: 0 | H55: -7.597 | I55: 2.304 | J55: 200.25 | K55: 69.326
A56: 2019/12/03 03:00:00 | B56: 0.768 | C56: 6.089 | D56: 6.853 | E56: 21.951 | F56: 7.689 | G56: 0 | H56: -6.315 | I56: 2.165 | J56: 201.489 | K56: 68.367
A57: 2019/12/03 04:00:00 | B57: 0.298 | C57: 3.989 | D57: 4.285 | E57: 25.662 | F57: 5.464 | G57: 0 | H57: -5.438 | I57: 2.533 | J57: 212.015 | K57: 65.889
A58: 2019/12/03 05:00:00 | B58: 1.992 | C58: 5.52 | D58: 7.507 | E58: 25.446 | F58: 5.484 | G58: 0 | H58: -5.548 | I58: 2.223 | J58: 213.231 | K58: 65.105
A59: 2019/12/03 06:00:00 | B59: 1.289 | C59: 4.732 | D59: 6.017 | E59: 24.039 | F59: 6.065 | G59: 0 | H59: -7.039 | I59: 1.814 | J59: 209.872 | K59: 67.359
A60: 2019/12/03 07:00:00 | B60: 1.035 | C60: 5.322 | D60: 6.354 | E60: 22.807 | F60: 6.863 | G60: 0 | H60: -7.394 | I60: 2.006 | J60: 201.174 | K60: 69.702
A61: 2019/12/03 08:00:00 | B61: 2.025 | C61: 6.644 | D61: 8.667 | E61: 21.662 | F61: 6.137 | G61: 0 | H61: -7.313 | I61: 1.85 | J61: 204.133 | K61: 70.519
A62: 2019/12/03 09:00:00 | B62: 2.409 | C62: 8.829 | D62: 11.236 | E62: 20.253 | F62: 5.256 | G62: 0 | H62: -6.885 | I62: 2.488 | J62: 207.41 | K62: 71.094
A63: 2019/12/03 10:00:00 | B63: 2.243 | C63: 6.551 | D63: 8.792 | E63: 24.225 | F63: 2.47 | G63: 0 | H63: -4.076 | I63: 2.762 | J63: 227.245 | K63: 67.069
A64: 2019/12/03 11:00:00 | B64: 1.531 | C64: 4.334 | D64: 5.862 | E64: 27.347 | F64: 1.563 | G64: 0 | H64: -2.311 | I64: 3.042 | J64: 230.744 | K64: 63.171
A65: 2019/12/03 12:00:00 | B65: 1.378 | C65: 4.17 | D65: 5.546 | E65: 28.757 | F65: 1.363 | G65: 0 | H65: -0.836 | I65: 3.246 | J65: 235.041 | K65: 61.116
A66: 2019/12/03 13:00:00 | B66: 1.204 | C66: 3.767 | D66: 4.969 | E66: 30.03 | F66: 1.554 | G66: 0 | H66: 0.733 | I66: 3.66 | J66: 244.313 | K66: 61.075
A67: 2019/12/03 14:00:00 | B67: 1.734 | C67: 4.189 | D67: 5.92 | E67: 30.381 | F67: 1.444 | G67: 0 | H67: 2.372 | I67: 3.479 | J67: 243.297 | K67: 60.232
A68: 2019/12/03 15:00:00 | B68: 2.141 | C68: 4.246 | D68: 6.385 | E68: 30.47 | F68: 1.233 | G68: 0 | H68: 3.244 | I68: 3.832 | J68: 249.081 | K68: 59.578
A69: 2019/12/03 16:00:00 | B69: 1.274 | C69: 3.95 | D69: 5.222 | E69: 30.861 | F69: 1.401 | G69: 0 | H69: 3.33 | I69: 3.21 | J69: 244.258 | K69: 59.507
A70: 2019/12/03 17:00:00 | B70: 0.799 | C70: 5.243 | D70: 6.04 | E70: 30.017 | F70: 2.033 | G70: 0 | H70: 2.556 | I70: 2.971 | J70: 240.772 | K70: 60.581
A71: 2019/12/03 18:00:00 | B71: 0.058 | C71: 3.753 | D71: 3.809 | E71: 30.181 | F71: 2.658 | G71: 0 | H71: 1.333 | I71: 2.437 | J71: 234.327 | K71: 62.696
A72: 2019/12/03 19:00:00 | B72: 0.574 | C72: 4.282 | D72: 4.854 | E72: 29.02 | F72: 3.327 | G72: 0 | H72: 0.965 | I72: 2.291 | J72: 227.914 | K72: 64.542
A73: 2019/12/03 20:00:00 | B73: 0.148 | C73: 3.319 | D73: 3.464 | E73: 29.894 | F73: 2.816 | G73: 0 | H73: 0.761 | I73: 2.46 | J73: 234.994 | K73: 62.502
A74: 2019/12/03 21:00:00 | B74: 0.008 | C74: 2.96 | D74: 2.967 | E74: 29.973 | F74: 2.404 | G74: 0 | H74: 0.358 | I74: 3.662 | J74: 242.199 | K74: 62.771
A75: 2019/12/03 22:00:00 | B75: Z | C75: Z | D75: Z | E75: Z | F75: 1.891 | G75: 0 | H75: -0.426 | I75: 3.714 | J75: 246.65 | K75: 63.295
A76: 2019/12/03 23:00:00 | B76: 0.118 | C76: 3.051 | D76: 3.167 | E76: 27.523 | F76: 1.882 | G76: 0 | H76: -1.089 | I76: 2.975 | J76: 245.953 | K76: 64.107
A77: 2019/12/04 00:00:00 | B77: 0.053 | C77: 2.932 | D77: 2.984 | E77: 27.768 | F77: 2.731 | G77: 0 | H77: -0.781 | I77: 2.716 | J77: 247.716 | K77: 64.268
A78: 2019/12/04 01:00:00 | B78: 0.877 | C78: 4.334 | D78: 5.209 | E78: 25.369 | F78: 1.67 | G78: 0 | H78: -0.579 | I78: 1.824 | J78: 250.243 | K78: 66.437
A79: 2019/12/04 02:00:00 | B79: 2.096 | C79: 6.816 | D79: 8.91 | E79: 23.684 | F79: 2.333 | G79: 0 | H79: -0.645 | I79: 1.641 | J79: 233.969 | K79: 66.486
A80: 2019/12/04 03:00:00 | B80: 0.66 | C80: 3.537 | D80: 4.196 | E80: 24.06 | F80: 2.052 | G80: 0 | H80: -0.976 | I80: 1.296 | J80: 234.776 | K80: 67.182
A81: 2019/12/04 04:00:00 | B81: 0.686 | C81: 3.798 | D81: 4.483 | E81: 22.683 | F81: 2.255 | G81: 0 | H81: -1.543 | I81: 1.123 | J81: 223.39 | K81: 68.77
A82: 2019/12/04 05:00:00 | B82: 0.613 | C82: 3.555 | D82: 4.166 | E82: 20.334 | F82: 2.665 | G82: 0 | H82: -3.01 | I82: 1.76 | J82: 212.475 | K82: 71.807
A83: 2019/12/04 06:00:00 | B83: 0.058 | C83: 2.54 | D83: 2.599 | E83: 19.416 | F83: 3.659 | G83: 0 | H83: -4.328 | I83: 1.533 | J83: 206.021 | K83: 73.096
A84: 2019/12/04 07:00:00 | B84: 0.352 | C84: 2.606 | D84: 2.956 | E84: 17.977 | F84: 3.943 | G84: 0 | H84: -5.353 | I84: 1.435 | J84: 195.947 | K84: 73.801
A85: 2019/12/04 08:00:00 | B85: 1.559 | C85: 3.737 | D85: 5.293 | E85: 17.097 | F85: 4.172 | G85: 0 | H85: -5.021 | I85: 1.398 | J85: 202.315 | K85: 73.326
A86: 2019/12/04 09:00:00 | B86: 1.439 | C86: 5.162 | D86: 6.6 | E86: 15.362 | F86: 5.125 | G86: 0 | H86: -4.688 | I86: 1.075 | J86: 199.615 | K86: 72.561
A87: 2019/12/04 10:00:00 | B87: 0.7 | C87: 3.711 | D87: 4.409 | E87: 17.131 | F87: 5.702 | G87: 0 | H87: -4.211 | I87: 0.94 | J87: 195.589 | K87: 71.548
A88: 2019/12/04 11:00:00 | B88: 1.835 | C88: 4.655 | D88: 6.488 | E88: 16.581 | F88: 4.657 | G88: 0 | H88: -2.524 | I88: 0.12 | J88: 6.154 | K88: 66.089
A89: 2019/12/04 12:00:00 | B89: 3.716 | C89: 6.981 | D89: 10.696 | E89: 15.494 | F89: 4.103 | G89: 0 | H89: -1.349 | I89: 0.467 | J89: 12.204 | K89: 63.915
A90: 2019/12/04 13:00:00 | B90: C | C90: C | D90: C | E90: C | F90: 5.932 | G90: 0 | H90: -0.642 | I90: 0.395 | J90: 20.153 | K90: 62.627
A91: 2019/12/04 14:00:00 | B91: C | C91: C | D91: C | E91: C | F91: 5.864 | G91: 0 | H91: -0.012 | I91: 1.484 | J91: 29.72 | K91: 62.715
A92: 2019/12/04 15:00:00 | B92: C | C92: C | D92: C | E92: C | F92: 3.859 | G92: 0 | H92: -0.755 | I92: 1.655 | J92: 36.536 | K92: 64.57
A93: 2019/12/04 16:00:00 | B93: C | C93: C | D93: C | E93: C | F93: 3.59 | G93: 0 | H93: -1.664 | I93: 1.722 | J93: 44.721 | K93: 65.825
A94: 2019/12/04 17:00:00 | B94: C | C94: C | D94: C | E94: C | F94: 3.468 | G94: 0 | H94: -2.571 | I94: 1.721 | J94: 33.622 | K94: 68.461
A95: 2019/12/04 18:00:00 | B95: C | C95: C | D95: C | E95: C | F95: 3.411 | G95: 0 | H95: -3.415 | I95: 1.841 | J95: 38.81 | K95: 70.71
A96: 2019/12/04 19:00:00 | B96: C | C96: C | D96: C | E96: C | F96: 7.441 | G96: 0 | H96: -3.828 | I96: 1.424 | J96: 21.909 | K96: 72.047
A97: 2019/12/04 20:00:00 | B97: 0.459 | C97: 2.352 | D97: 2.809 | E97: 23.181 | F97: 9.513 | G97: 0 | H97: -4.589 | I97: 1.963 | J97: 23.326 | K97: 73.459
A98: 2019/12/04 21:00:00 | B98: Z | C98: Z | D98: Z | E98: Z | F98: 4.014 | G98: 0 | H98: -6.136 | I98: 1.951 | J98: 29.06 | K98: 73.965
A99: 2019/12/04 22:00:00 | B99: 0.122 | C99: 1.398 | D99: 1.518 | E99: 21.987 | F99: 3.964 | G99: 0 | H99: -6.245 | I99: 1.203 | J99: 22.689 | K99: 74.27
A100: 2019/12/04 23:00:00 | B100: 0.236 | C100: 1.385 | D100: 1.619 | E100: 21.357 | F100: 6.398 | G100: 0 | H100: -6.579 | I100: 1.482 | J100: 15.262 | K100: 74.091
A101: 2019/12/05 00:00:00 | B101: 0.184 | C101: 1.411 | D101: 1.594 | E101: 21.094 | F101: 7.307 | G101: 0 | H101: -7.031 | I101: 1.628 | J101: 17.976 | K101: 74.118
A102: 2019/12/05 01:00:00 | B102: 0.242 | C102: 1.006 | D102: 1.246 | E102: 19.988 | F102: 5.539 | G102: 0 | H102: -8.1 | I102: 1.677 | J102: 16.974 | K102: 73.992
A103: 2019/12/05 02:00:00 | B103: 0.321 | C103: 1.463 | D103: 1.783 | E103: 20.046 | F103: 5.217 | G103: 0 | H103: -8.795 | I103: 1.171 | J103: 25.3 | K103: 72.815
A104: 2019/12/05 03:00:00 | B104: 0.217 | C104: 1.974 | D104: 2.19 | E104: 18.385 | F104: 5.08 | G104: 0 | H104: -10.132 | I104: 1.101 | J104: 345.529 | K104: 71.281
A105: 2019/12/05 04:00:00 | B105: 0.567 | C105: 3.855 | D105: 4.423 | E105: 16.416 | F105: 3.451 | G105: 0 | H105: -11.913 | I105: 0.988 | J105: 359.898 | K105: 68.046
A106: 2019/12/05 05:00:00 | B106: 0.141 | C106: 1.794 | D106: 1.935 | E106: 18.583 | F106: 4.07 | G106: 0 | H106: -12.79 | I106: 0.792 | J106: 321.732 | K106: 65.924
A107: 2019/12/05 06:00:00 | B107: 0.467 | C107: 2.625 | D107: 3.091 | E107: 17.419 | F107: 3.178 | G107: 0 | H107: -13.556 | I107: 0.716 | J107: 314.844 | K107: 67.612
A108: 2019/12/05 07:00:00 | B108: 4.368 | C108: 8.004 | D108: 12.371 | E108: 13.473 | F108: 3.224 | G108: 0 | H108: -14.205 | I108: 0.609 | J108: 265.757 | K108: 67.364
A109: 2019/12/05 08:00:00 | B109: 7.965 | C109: 16.688 | D109: 24.652 | E109: 5.943 | F109: 5.185 | G109: 0 | H109: -14.462 | I109: 0.407 | J109: 198.878 | K109: 69.247
A110: 2019/12/05 09:00:00 | B110: 17.88 | C110: 15.294 | D110: 33.174 | E110: 9.05 | F110: 4.94 | G110: 0 | H110: -15.49 | I110: 0.643 | J110: 177.14 | K110: 68.852
A111: 2019/12/05 10:00:00 | B111: 10.834 | C111: 8.832 | D111: 19.667 | E111: 10.622 | F111: 6.66 | G111: 0 | H111: -14.451 | I111: 0.852 | J111: 179.61 | K111: 70.529
A112: 2019/12/05 11:00:00 | B112: 7.192 | C112: 5.215 | D112: 12.407 | E112: 15.464 | F112: 4.708 | G112: 0 | H112: -11.94 | I112: 0.761 | J112: 179.351 | K112: 67.522
A113: 2019/12/05 12:00:00 | B113: 2.253 | C113: 3.264 | D113: 5.517 | E113: 19.252 | F113: 2.726 | G113: 0 | H113: -10.741 | I113: 0.924 | J113: 171.078 | K113: 65.635
A114: 2019/12/05 13:00:00 | B114: 2.247 | C114: 2.713 | D114: 4.96 | E114: 19.309 | F114: 3.039 | G114: 0 | H114: -9.545 | I114: 1.049 | J114: 167.26 | K114: 65.933
A115: 2019/12/05 14:00:00 | B115: 1.892 | C115: 2.661 | D115: 4.555 | E115: 18.682 | F115: 2.925 | G115: 0 | H115: -7.255 | I115: 0.736 | J115: 168.445 | K115: 64.343
A116: 2019/12/05 15:00:00 | B116: 2.541 | C116: 3.282 | D116: 5.823 | E116: 17.523 | F116: 3.61 | G116: 0 | H116: -6.461 | I116: 1.112 | J116: 191.965 | K116: 67.169
A117: 2019/12/05 16:00:00 | B117: 1.246 | C117: 2.775 | D117: 4.022 | E117: 17.091 | F117: 4.719 | G117: 0 | H117: -5.442 | I117: 0.881 | J117: 177.012 | K117: 65.33
A118: 2019/12/05 17:00:00 | B118: 1.795 | C118: 4.031 | D118: 5.827 | E118: 14.919 | F118: 5.411 | G118: 0 | H118: -5.938 | I118: 0.377 | J118: 150.416 | K118: 67.021
A119: 2019/12/05 18:00:00 | B119: 1.272 | C119: 4.061 | D119: 5.335 | E119: 14.304 | F119: 11.023 | G119: 0 | H119: -8.452 | I119: 0.754 | J119: 172.115 | K119: 74.71
A120: 2019/12/05 19:00:00 | B120: 1.724 | C120: 4.22 | D120: 5.945 | E120: 15.043 | F120: 13.029 | G120: 0 | H120: -9.91 | I120: 1.036 | J120: 171.97 | K120: 77.759
A121: 2019/12/05 20:00:00 | B121: Z | C121: Z | D121: Z | E121: Z | F121: 10.624 | G121: 0 | H121: -10.219 | I121: 1.418 | J121: 173.921 | K121: 79.382
A122: 2019/12/05 21:00:00 | B122: 2.222 | C122: 5.006 | D122: 7.229 | E122: 18.869 | F122: 9.273 | G122: 0 | H122: -9.622 | I122: 1.196 | J122: 189.089 | K122: 78.443
A123: 2019/12/05 22:00:00 | B123: 0.649 | C123: 3.61 | D123: 4.259 | E123: 21.311 | F123: 7.077 | G123: 0 | H123: -8.986 | I123: 2.03 | J123: 202.908 | K123: 78.148
A124: 2019/12/05 23:00:00 | B124: 1.282 | C124: 4.046 | D124: 5.329 | E124: 20.408 | F124: 8.071 | G124: 0 | H124: -9.618 | I124: 1.283 | J124: 191.94 | K124: 77.56
A125: 2019/12/06 00:00:00 | B125: 0.63 | C125: 3.361 | D125: 3.992 | E125: 21.124 | F125: 9.116 | G125: 0 | H125: -9.13 | I125: 1.45 | J125: 201.233 | K125: 77.31
A126: 2019/12/06 01:00:00 | B126: 1.166 | C126: 4.065 | D126: 5.232 | E126: 21.039 | F126: 10.064 | G126: 0 | H126: -8.498 | I126: 1.523 | J126: 200.231 | K126: 77.086
A127: 2019/12/06 02:00:00 | B127: 0.457 | C127: 2.83 | D127: 3.286 | E127: 21.168 | F127: 10.298 | G127: 0 | H127: -8.914 | I127: 1.172 | J127: 188.657 | K127: 76.585
A128: 2019/12/06 03:00:00 | B128: 1.061 | C128: 4.651 | D128: 5.713 | E128: 19.641 | F128: 8.748 | G128: 0 | H128: -9.451 | I128: 1.391 | J128: 191.998 | K128: 76.908
A129: 2019/12/06 04:00:00 | B129: 1.17 | C129: 4.043 | D129: 5.214 | E129: 19.568 | F129: 7.709 | G129: 0 | H129: -9.24 | I129: 1.584 | J129: 196.504 | K129: 77.024
A130: 2019/12/06 05:00:00 | B130: 0.378 | C130: 2.761 | D130: 3.138 | E130: 20.595 | F130: 7.986 | G130: 0 | H130: -9.03 | I130: 1.056 | J130: 229.17 | K130: 76.481
A131: 2019/12/06 06:00:00 | B131: 1.255 | C131: 3.964 | D131: 5.22 | E131: 18.509 | F131: 8.648 | G131: 0 | H131: -8.905 | I131: 0.449 | J131: 250.032 | K131: 74.472
A132: 2019/12/06 07:00:00 | B132: 1.342 | C132: 4.056 | D132: 5.398 | E132: 19.57 | F132: 10.632 | G132: 0 | H132: -8.882 | I132: 1.14 | J132: 237.782 | K132: 79.385
A133: 2019/12/06 08:00:00 | B133: 1.438 | C133: 5.282 | D133: 6.719 | E133: 20.309 | F133: 9.835 | G133: 0 | H133: -8.733 | I133: 1.696 | J133: 242.849 | K133: 81.551
A134: 2019/12/06 09:00:00 | B134: 1.748 | C134: 4.79 | D134: 6.538 | E134: 20.69 | F134: 11.639 | G134: 0 | H134: -8.171 | I134: 1.69 | J134: 262.011 | K134: 81.754
A135: 2019/12/06 10:00:00 | B135: 1.491 | C135: 3.827 | D135: 5.317 | E135: 19.755 | F135: 14.426 | G135: 0 | H135: -7.724 | I135: 1.732 | J135: 251.677 | K135: 81.669
A136: 2019/12/06 11:00:00 | B136: 1.032 | C136: 3.183 | D136: 4.215 | E136: 20.463 | F136: 17.051 | G136: 0 | H136: -7.321 | I136: 2.249 | J136: 247.985 | K136: 81.63
A137: 2019/12/06 12:00:00 | B137: 1.281 | C137: 2.893 | D137: 4.174 | E137: 22.369 | F137: 11.764 | G137: 0 | H137: -6.792 | I137: 2.321 | J137: 249.123 | K137: 81.266
A138: 2019/12/06 13:00:00 | B138: 2.951 | C138: 4.688 | D138: 7.639 | E138: 21.216 | F138: 9.54 | G138: 0 | H138: -6.158 | I138: 0.902 | J138: 253.654 | K138: 79.976
A139: 2019/12/06 14:00:00 | B139: 2.194 | C139: 3.366 | D139: 5.559 | E139: 20.745 | F139: 10.759 | G139: 0 | H139: -5.628 | I139: 0.822 | J139: 211.582 | K139: 79.032
A140: 2019/12/06 15:00:00 | B140: 1.655 | C140: 4.006 | D140: 5.658 | E140: 19.014 | F140: 12.482 | G140: 0 | H140: -5.722 | I140: 0.757 | J140: 190.487 | K140: 78.248
A141: 2019/12/06 16:00:00 | B141: 2.178 | C141: 5.098 | D141: 7.275 | E141: 17.92 | F141: 13.349 | G141: 0 | H141: -5.987 | I141: 0.576 | J141: 171.145 | K141: 77.418
A142: 2019/12/06 17:00:00 | B142: 7.417 | C142: 8.201 | D142: 15.617 | E142: 14.711 | F142: 17.522 | G142: 0 | H142: -7.061 | I142: 0.44 | J142: 151.342 | K142: 77.638
A143: 2019/12/06 18:00:00 | B143: 2.154 | C143: 6.1 | D143: 8.252 | E143: 13.782 | F143: 16.601 | G143: 0 | H143: -8.12 | I143: 0.507 | J143: 175.436 | K143: 76.958
A144: 2019/12/06 19:00:00 | B144: Z | C144: Z | D144: Z | E144: Z | F144: 15.453 | G144: 0 | H144: -9.38 | I144: 0.464 | J144: 179.248 | K144: 76.177
A145: 2019/12/06 20:00:00 | B145: 1.245 | C145: 4.792 | D145: 6.036 | E145: 11.675 | F145: 15.528 | G145: 0 | H145: -10.762 | I145: 0.555 | J145: 108.728 | K145: 77.166
A146: 2019/12/06 21:00:00 | B146: 2.427 | C146: 5.734 | D146: 8.16 | E146: 9.671 | F146: 12.854 | G146: 0 | H146: -12.366 | I146: 0.581 | J146: 84.046 | K146: 74.775
A147: 2019/12/06 22:00:00 | B147: 0.47 | C147: 5.203 | D147: 5.671 | E147: 10.786 | F147: 11.614 | G147: 0 | H147: -11.749 | I147: 0.758 | J147: 97.761 | K147: 75.859
A148: 2019/12/06 23:00:00 | B148: 0.145 | C148: 5.542 | D148: 5.686 | E148: 11.868 | F148: 12.002 | G148: 0 | H148: -10.336 | I148: 0.865 | J148: 79.569 | K148: 76.052
A149: 2019/12/07 00:00:00 | B149: 0.386 | C149: 6.046 | D149: 6.43 | E149: 11.412 | F149: 9.674 | G149: 0 | H149: -11.323 | I149: 1.071 | J149: 85.788 | K149: 75.607
A150: 2019/12/07 01:00:00 | B150: 0.245 | C150: 3.583 | D150: 3.827 | E150: 14.557 | F150: 6.438 | G150: 0 | H150: -10.505 | I150: 1.145 | J150: 85.434 | K150: 77.017
A151: 2019/12/07 02:00:00 | B151: -0.011 | C151: 2.885 | D151: 2.874 | E151: 16.387 | F151: 5.18 | G151: 0 | H151: -9.449 | I151: 1.311 | J151: 89.468 | K151: 77.262
A152: 2019/12/07 03:00:00 | B152: 0.443 | C152: 2.484 | D152: 2.927 | E152: 17.463 | F152: 5.093 | G152: 0 | H152: -9.665 | I152: 1.266 | J152: 101.777 | K152: 77.381
A153: 2019/12/07 04:00:00 | B153: 0.991 | C153: 3.595 | D153: 4.586 | E153: 14.72 | F153: 6.047 | G153: 0 | H153: -10.013 | I153: 0.623 | J153: 104.219 | K153: 76.21
A154: 2019/12/07 05:00:00 | B154: 0.807 | C154: 4.645 | D154: 5.452 | E154: 11.63 | F154: 6.623 | G154: 0 | H154: -10.14 | I154: 0.688 | J154: 94.289 | K154: 76.743
A155: 2019/12/07 06:00:00 | B155: 0.436 | C155: 4.545 | D155: 4.981 | E155: 10.563 | F155: 6.522 | G155: 0 | H155: -9.561 | I155: 0.787 | J155: 100.174 | K155: 76.798
A156: 2019/12/07 07:00:00 | B156: 0.633 | C156: 5.443 | D156: 6.077 | E156: 8.598 | F156: 6.724 | G156: 0 | H156: -10.203 | I156: 0.546 | J156: 70.845 | K156: 75.252
A157: 2019/12/07 08:00:00 | B157: 0.476 | C157: 5.922 | D157: 6.399 | E157: 7.343 | F157: 7.019 | G157: 0 | H157: -10.113 | I157: 0.313 | J157: 320.928 | K157: 73.811
A158: 2019/12/07 09:00:00 | B158: 0.487 | C158: 7.676 | D158: 8.164 | E158: 6.147 | F158: 6.694 | G158: 0 | H158: -9.5 | I158: 0.593 | J158: 42.651 | K158: 75.494
A159: 2019/12/07 10:00:00 | B159: 0.839 | C159: 4.382 | D159: 5.222 | E159: 10.243 | F159: 8.835 | G159: 0 | H159: -8.601 | I159: 1.053 | J159: 24.669 | K159: 79.403
A160: 2019/12/07 11:00:00 | B160: 1.68 | C160: 4.355 | D160: 6.036 | E160: 11.664 | F160: 11.453 | G160: 0 | H160: -7.565 | I160: 1.169 | J160: 352.5 | K160: 81.697
A161: 2019/12/07 12:00:00 | B161: 2.144 | C161: 4.089 | D161: 6.235 | E161: 13.418 | F161: 10.289 | G161: 0 | H161: -7.219 | I161: 1.749 | J161: 21.643 | K161: 79.886
A162: 2019/12/07 13:00:00 | B162: 1.142 | C162: 2.592 | D162: 3.734 | E162: 18.388 | F162: 7.885 | G162: 0 | H162: -7.228 | I162: 2.614 | J162: 26.529 | K162: 78.167
A163: 2019/12/07 14:00:00 | B163: 0.836 | C163: 2.384 | D163: 3.221 | E163: 22.103 | F163: 7.42 | G163: 0 | H163: -6.791 | I163: 3.369 | J163: 31.833 | K163: 74.897
A164: 2019/12/07 15:00:00 | B164: 0.884 | C164: 2.502 | D164: 3.387 | E164: 23.286 | F164: 5.626 | G164: 0 | H164: -6.911 | I164: 3.073 | J164: 30.314 | K164: 74.666
A165: 2019/12/07 16:00:00 | B165: 0.458 | C165: 1.789 | D165: 2.248 | E165: 25.741 | F165: 2.561 | G165: 0 | H165: -7.457 | I165: 3.651 | J165: 32.874 | K165: 73.962
A166: 2019/12/07 17:00:00 | B166: 0.327 | C166: 1.741 | D166: 2.07 | E166: 27.751 | F166: 1.426 | G166: 0 | H166: -8.363 | I166: 3.343 | J166: 31.763 | K166: 71.807
A167: 2019/12/07 18:00:00 | B167: Z | C167: Z | D167: Z | E167: Z | F167: 1.457 | G167: 0 | H167: -9.623 | I167: 3.274 | J167: 28.14 | K167: 67.395
A168: 2019/12/07 19:00:00 | B168: 0.402 | C168: 1.911 | D168: 2.314 | E168: 23.99 | F168: 1.862 | G168: 0 | H168: -10.561 | I168: 3.298 | J168: 30.079 | K168: 66.537
A169: 2019/12/07 20:00:00 | B169: 0.415 | C169: 1.563 | D169: 1.98 | E169: 24.147 | F169: 1.587 | G169: 0 | H169: -11.583 | I169: 3.265 | J169: 34.331 | K169: 63.599
A170: 2019/12/07 21:00:00 | B170: 0.43 | C170: 1.346 | D170: 1.777 | E170: 25.429 | F170: 1.327 | G170: 0 | H170: -12.651 | I170: 3.169 | J170: 32.579 | K170: 60.796
A171: 2019/12/07 22:00:00 | B171: 0.261 | C171: 1.273 | D171: 1.534 | E171: 25.291 | F171: 1.494 | G171: 0 | H171: -13.373 | I171: 2.775 | J171: 30.478 | K171: 61.459
A172: 2019/12/07 23:00:00 | B172: 0.357 | C172: 1.168 | D172: 1.526 | E172: 25.031 | F172: 1.488 | G172: 0 | H172: -14.234 | I172: 2.807 | J172: 33.366 | K172: 63.537
A173: 2019/12/08 00:00:00 | B173: 0.156 | C173: 0.757 | D173: 0.914 | E173: 24.611 | F173: 1.423 | G173: 0 | H173: -15.083 | I173: 2.614 | J173: 39.374 | K173: 66.842
A174: 2019/12/08 01:00:00 | B174: 0.144 | C174: 0.661 | D174: 0.805 | E174: 25.541 | F174: 1.192 | G174: 0 | H174: -15.768 | I174: 2.663 | J174: 37.053 | K174: 67.46
A175: 2019/12/08 02:00:00 | B175: 0.094 | C175: 0.914 | D175: 1.009 | E175: 26.743 | F175: 0.867 | G175: 0 | H175: -17.285 | I175: 2.326 | J175: 41.335 | K175: 68.191
A176: 2019/12/08 03:00:00 | B176: -0.023 | C176: 0.606 | D176: 0.584 | E176: 26.609 | F176: 0.855 | G176: 0 | H176: -17.968 | I176: 2.016 | J176: 46.439 | K176: 68.718
A177: 2019/12/08 04:00:00 | B177: -0.068 | C177: 0.503 | D177: 0.435 | E177: 26.508 | F177: 0.868 | G177: 0 | H177: -18.476 | I177: 2.154 | J177: 45.324 | K177: 69.002
A178: 2019/12/08 05:00:00 | B178: -0.053 | C178: 0.599 | D178: 0.546 | E178: 26.226 | F178: 0.965 | G178: 0 | H178: -18.763 | I178: 1.773 | J178: 41.377 | K178: 69.362
A179: 2019/12/08 06:00:00 | B179: 0.27 | C179: 0.856 | D179: 1.126 | E179: 26.212 | F179: 1.009 | G179: 0 | H179: -19.326 | I179: 1.781 | J179: 42.374 | K179: 69.595
A180: 2019/12/08 07:00:00 | B180: -0.041 | C180: 0.503 | D180: 0.462 | E180: 26.211 | F180: 0.968 | G180: 0 | H180: -19.779 | I180: 1.914 | J180: 44.675 | K180: 69.777
A181: 2019/12/08 08:00:00 | B181: -0.073 | C181: 0.654 | D181: 0.581 | E181: 25.967 | F181: 0.998 | G181: 0 | H181: -20.34 | I181: 2.207 | J181: 45.28 | K181: 69.859
A182: 2019/12/08 09:00:00 | B182: -0.101 | C182: 0.85 | D182: 0.748 | E182: 25.303 | F182: 1.248 | G182: 0 | H182: -20.851 | I182: 1.614 | J182: 45.684 | K182: 69.531
A183: 2019/12/08 10:00:00 | B183: 0.026 | C183: 0.893 | D183: 0.918 | E183: 24.961 | F183: 1.206 | G183: 0 | H183: -21.407 | I183: 1.619 | J183: 42.78 | K183: 68.874
A184: 2019/12/08 11:00:00 | B184: 0.032 | C184: 0.739 | D184: 0.769 | E184: 24.907 | F184: 1.915 | G184: 0 | H184: -20.837 | I184: 0.772 | J184: 55.145 | K184: 65.695
A185: 2019/12/08 12:00:00 | B185: -0.051 | C185: 0.656 | D185: 0.603 | E185: 25.292 | F185: 1.597 | G185: 0 | H185: -19.337 | I185: 0.588 | J185: 69.264 | K185: 60.234
A186: 2019/12/08 13:00:00 | B186: 0.632 | C186: 1.197 | D186: 1.826 | E186: 24.406 | F186: 1.293 | G186: 0 | H186: -17.354 | I186: 0.337 | J186: 65.907 | K186: 54.322
A187: 2019/12/08 14:00:00 | B187: 1.091 | C187: 1.856 | D187: 2.947 | E187: 24.259 | F187: 1.308 | G187: 0 | H187: -16.509 | I187: 0.256 | J187: 289.643 | K187: 52.955
A188: 2019/12/08 15:00:00 | B188: 0.421 | C188: 1.22 | D188: 1.642 | E188: 25.402 | F188: 1.73 | G188: 0 | H188: -16.573 | I188: 0.551 | J188: 266.392 | K188: 54.312
A189: 2019/12/08 16:00:00 | B189: 0.518 | C189: 1.863 | D189: 2.379 | E189: 24.44 | F189: 2.428 | G189: 0 | H189: -16.635 | I189: 0.882 | J189: 210.887 | K189: 55.126
A190: 2019/12/08 17:00:00 | B190: Z | C190: Z | D190: Z | E190: Z | F190: 4.171 | G190: 0 | H190: -18.045 | I190: 0.864 | J190: 187.656 | K190: 58.925
A191: 2019/12/08 18:00:00 | B191: 2.013 | C191: 6.67 | D191: 8.682 | E191: 17.036 | F191: 8.757 | G191: 0 | H191: -19.36 | I191: 0.65 | J191: 181.84 | K191: 61.898
A192: 2019/12/08 19:00:00 | B192: 2.238 | C192: 5.858 | D192: 8.094 | E192: 15.721 | F192: 10.852 | G192: 0 | H192: -20.447 | I192: 0.597 | J192: 174.589 | K192: 64.325
A193: 2019/12/08 20:00:00 | B193: 2.739 | C193: 5.988 | D193: 8.725 | E193: 14.056 | F193: 6.154 | G193: 0 | H193: -21.177 | I193: 0.677 | J193: 176.577 | K193: 64.517
A194: 2019/12/08 21:00:00 | B194: 1.746 | C194: 3.191 | D194: 4.935 | E194: 18.465 | F194: 2.92 | G194: 0 | H194: -19.721 | I194: 1.444 | J194: 179.223 | K194: 68.698
A195: 2019/12/08 22:00:00 | B195: 0.216 | C195: 1.365 | D195: 1.579 | E195: 20.926 | F195: 1.738 | G195: 0 | H195: -17.743 | I195: 2.018 | J195: 197.446 | K195: 69.073
A196: 2019/12/08 23:00:00 | B196: 1.042 | C196: 1.825 | D196: 2.866 | E196: 21.213 | F196: 1.371 | G196: 0 | H196: -16.531 | I196: 2.229 | J196: 190.237 | K196: 69.512
A197: 2019/12/09 00:00:00 | B197: 1.199 | C197: 1.853 | D197: 3.051 | E197: 20.668 | F197: 1.57 | G197: 0 | H197: -15.331 | I197: 2.752 | J197: 200.514 | K197: 69.608
A198: 2019/12/09 01:00:00 | B198: 0.218 | C198: 1.014 | D198: 1.23 | E198: 21.98 | F198: 1.682 | G198: 0 | H198: -14.024 | I198: 2.55 | J198: 202.726 | K198: 69.332
A199: 2019/12/09 02:00:00 | B199: 0.1 | C199: 1.133 | D199: 1.23 | E199: 22.137 | F199: 1.775 | G199: 0 | H199: -12.857 | I199: 2.745 | J199: 204.092 | K199: 70.197
A200: 2019/12/09 03:00:00 | B200: 0.527 | C200: 1.407 | D200: 1.932 | E200: 22.659 | F200: 1.948 | G200: 0 | H200: -11.738 | I200: 2.457 | J200: 217.238 | K200: 70.683
A201: 2019/12/09 04:00:00 | B201: 0.742 | C201: 1.911 | D201: 2.651 | E201: 24.116 | F201: 3.224 | G201: 0 | H201: -10.53 | I201: 2.631 | J201: 241.212 | K201: 68.595
... 556 more rows

Sheet Kerrobert
A1: Group: Global WYAMZ - Monthly Monthly: 12/2019 Type: AVG 1 Hr.
A3: Date & Time | B3: Kerrobert | C3: Kerrobert | D3: Kerrobert | E3: Kerrobert | F3: Kerrobert | G3: Kerrobert | H3: Kerrobert | I3: Kerrobert
B4: SO2 | C4: H2S | D4: PM25 | E4: PRECIP | F4: TEMPERAT | G4: RH | H4: WS | I4: WD
B5: ppb | C5: ppb | D5: ug/m3(L) | E5: mm | F5: C° | G5: %RH | H5: m/s | I5: Deg
A6: 2019/12/01 01:00:00 | B6: Z | C6: Z | D6: 4.054 | E6: 0 | F6: -7.853 | G6: 79.424 | H6: 4.718 | I6: 192.919
A7: 2019/12/01 02:00:00 | B7: 0.006 | C7: 0.068 | D7: 4.139 | E7: 0 | F7: -8.163 | G7: 80.754 | H7: 4.865 | I7: 186.448
A8: 2019/12/01 03:00:00 | B8: -0.033 | C8: 0.002 | D8: 4.939 | E8: 0 | F8: -8.501 | G8: 82.723 | H8: 5.192 | I8: 186.458
A9: 2019/12/01 04:00:00 | B9: 0.033 | C9: 0.011 | D9: 6.799 | E9: 0 | F9: -8.879 | G9: 82.201 | H9: 3.984 | I9: 183.95
A10: 2019/12/01 05:00:00 | B10: 0.033 | C10: 0.031 | D10: 6.071 | E10: 0 | F10: -10.971 | G10: 80.968 | H10: 3.105 | I10: 171.206
A11: 2019/12/01 06:00:00 | B11: 0.017 | C11: 0.039 | D11: 6.227 | E11: 0 | F11: -12.71 | G11: 80.009 | H11: 3.066 | I11: 186.616
A12: 2019/12/01 07:00:00 | B12: 0.059 | C12: 0.057 | D12: 6.664 | E12: 0 | F12: -14.162 | G12: 78.307 | H12: 2.363 | I12: 205.565
A13: 2019/12/01 08:00:00 | B13: 0.003 | C13: 0.095 | D13: 6.434 | E13: 0 | F13: -14.854 | G13: 77.209 | H13: 1.991 | I13: 197.282
A14: 2019/12/01 09:00:00 | B14: 0.057 | C14: 0.14 | D14: 5.831 | E14: 0 | F14: -16.088 | G14: 76.93 | H14: 1.578 | I14: 145.027
A15: 2019/12/01 10:00:00 | B15: 0.017 | C15: -0.051 | D15: 5.45 | E15: 0 | F15: -15.901 | G15: 76.238 | H15: 1.363 | I15: 168.686
A16: 2019/12/01 11:00:00 | B16: 0.063 | C16: 0.011 | D16: 4.299 | E16: 0 | F16: -14.528 | G16: 77.338 | H16: 2.365 | I16: 151.306
A17: 2019/12/01 12:00:00 | B17: 0.03 | C17: -0.052 | D17: 3.204 | E17: 0 | F17: -13.248 | G17: 77.061 | H17: 2.248 | I17: 139.282
A18: 2019/12/01 13:00:00 | B18: 0.031 | C18: -0.012 | D18: 2.332 | E18: 0 | F18: -11.488 | G18: 75.809 | H18: 2.703 | I18: 160.387
A19: 2019/12/01 14:00:00 | B19: 0.065 | C19: 0.03 | D19: 1.902 | E19: 0 | F19: -9.398 | G19: 71.189 | H19: 3.179 | I19: 178.178
A20: 2019/12/01 15:00:00 | B20: -0.013 | C20: -0.035 | D20: 1.57 | E20: 0 | F20: -8.126 | G20: 68.35 | H20: 2.695 | I20: 177.953
A21: 2019/12/01 16:00:00 | B21: 0.027 | C21: 0.065 | D21: 1.52 | E21: 0 | F21: -7.718 | G21: 67.968 | H21: 2.35 | I21: 166.639
A22: 2019/12/01 17:00:00 | B22: 0.036 | C22: 0.099 | D22: 1.868 | E22: 0 | F22: -8.891 | G22: 69.985 | H22: 1.559 | I22: 195.584
A23: 2019/12/01 18:00:00 | B23: 0.038 | C23: 0.114 | D23: 2.868 | E23: 0 | F23: -10.143 | G23: 73.368 | H23: 1.933 | I23: 217.094
A24: 2019/12/01 19:00:00 | B24: 0.027 | C24: 0.16 | D24: 3.373 | E24: 0 | F24: -10.552 | G24: 74.443 | H24: 1.73 | I24: 237.011
A25: 2019/12/01 20:00:00 | B25: 0.044 | C25: 0.07 | D25: 4.209 | E25: 0 | F25: -11.106 | G25: 75.184 | H25: 2.316 | I25: 242.075
A26: 2019/12/01 21:00:00 | B26: 0.071 | C26: 0.135 | D26: 5.967 | E26: 0 | F26: -11.453 | G26: 75.004 | H26: 3.403 | I26: 256.355
A27: 2019/12/01 22:00:00 | B27: 0.034 | C27: 0.086 | D27: 7.506 | E27: 0 | F27: -12.572 | G27: 73.737 | H27: 2.101 | I27: 241.664
A28: 2019/12/01 23:00:00 | B28: 0.078 | C28: 0.247 | D28: 9.363 | E28: 0 | F28: -14.173 | G28: 74.21 | H28: 2.284 | I28: 230.917
A29: 2019/12/02 00:00:00 | B29: Z | C29: Z | D29: 11.999 | E29: 0 | F29: -14.403 | G29: 73.679 | H29: 2.029 | I29: 255.615
A30: 2019/12/02 01:00:00 | B30: 0.079 | C30: 0.202 | D30: 13.781 | E30: 0 | F30: -12.816 | G30: 72.163 | H30: 1.841 | I30: 253.859
A31: 2019/12/02 02:00:00 | B31: 0.056 | C31: 0.218 | D31: 12.922 | E31: 0 | F31: -12.443 | G31: 70.761 | H31: 1.509 | I31: 255.496
A32: 2019/12/02 03:00:00 | B32: 0.117 | C32: 0.153 | D32: 12.448 | E32: 0 | F32: -11.765 | G32: 70.731 | H32: 2.368 | I32: 244.76
A33: 2019/12/02 04:00:00 | B33: 0.236 | C33: 0.282 | D33: 11.83 | E33: 0 | F33: -9.447 | G33: 68.957 | H33: 1.7 | I33: 288.179
A34: 2019/12/02 05:00:00 | B34: 0.242 | C34: 0.091 | D34: 10.84 | E34: 0 | F34: -8.291 | G34: 66.955 | H34: 2.03 | I34: 261.941
A35: 2019/12/02 06:00:00 | B35: 0.209 | C35: 0.167 | D35: 10.104 | E35: 0 | F35: -7.615 | G35: 66.739 | H35: 1.729 | I35: 274.119
A36: 2019/12/02 07:00:00 | B36: 0.243 | C36: 0.175 | D36: 9.686 | E36: 0 | F36: -8.309 | G36: 66.962 | H36: 1.793 | I36: 253.589
A37: 2019/12/02 08:00:00 | B37: 0.41 | C37: 0.145 | D37: 8.658 | E37: 0 | F37: -6.273 | G37: 63.824 | H37: 2.813 | I37: 273.231
A38: 2019/12/02 09:00:00 | B38: 0.416 | C38: 0.208 | D38: 10.492 | E38: 0 | F38: -6.185 | G38: 66.497 | H38: 2.52 | I38: 285.51
A39: 2019/12/02 10:00:00 | B39: 0.442 | C39: 0.223 | D39: 8.703 | E39: 0 | F39: -5.696 | G39: 63.914 | H39: 1.429 | I39: 298.466
A40: 2019/12/02 11:00:00 | B40: 0.869 | C40: 0.241 | D40: 6.087 | E40: 0 | F40: -4.209 | G40: 58.039 | H40: 2.272 | I40: 283.063
A41: 2019/12/02 12:00:00 | B41: 0.62 | C41: 0.137 | D41: 6.738 | E41: 0 | F41: -4.189 | G41: 59.6 | H41: 3.782 | I41: 264.681
A42: 2019/12/02 13:00:00 | B42: 0.53 | C42: 0.22 | D42: 5.711 | E42: 0 | F42: -3.058 | G42: 58.483 | H42: 3.321 | I42: 272.53
A43: 2019/12/02 14:00:00 | B43: 0.583 | C43: 0.246 | D43: 5.338 | E43: 0 | F43: -1.56 | G43: 57.173 | H43: 3.272 | I43: 260.303
A44: 2019/12/02 15:00:00 | B44: 0.382 | C44: 0.358 | D44: 6.25 | E44: 0 | F44: -1.987 | G44: 59.284 | H44: 3.026 | I44: 246.831
A45: 2019/12/02 16:00:00 | B45: 0.203 | C45: 0.379 | D45: 8.131 | E45: 0 | F45: -2.864 | G45: 64.788 | H45: 3.525 | I45: 242.388
A46: 2019/12/02 17:00:00 | B46: 0.211 | C46: 0.493 | D46: 7.615 | E46: 0 | F46: -2.508 | G46: 63.522 | H46: 3.546 | I46: 245.83
A47: 2019/12/02 18:00:00 | B47: 0.222 | C47: 0.359 | D47: 6.722 | E47: 0 | F47: -2.963 | G47: 65.537 | H47: 4.071 | I47: 249.786
A48: 2019/12/02 19:00:00 | B48: 0.249 | C48: 0.337 | D48: 6.989 | E48: 0 | F48: -3.947 | G48: 65.805 | H48: 4.668 | I48: 249.356
A49: 2019/12/02 20:00:00 | B49: 0.268 | C49: 0.372 | D49: 6.459 | E49: 0 | F49: -4.871 | G49: 64.011 | H49: 4.864 | I49: 252.511
A50: 2019/12/02 21:00:00 | B50: 0.174 | C50: 0.319 | D50: 6.915 | E50: 0 | F50: -6.098 | G50: 68.259 | H50: 4.17 | I50: 250.905
A51: 2019/12/02 22:00:00 | B51: 0.237 | C51: 0.323 | D51: 5.859 | E51: 0 | F51: -5.547 | G51: 65.244 | H51: 3.956 | I51: 245.185
A52: 2019/12/02 23:00:00 | B52: Z | C52: Z | D52: 4.748 | E52: 0 | F52: -5.613 | G52: 61.821 | H52: 3.797 | I52: 245.217
A53: 2019/12/03 00:00:00 | B53: 0.077 | C53: 0.228 | D53: 5.22 | E53: 0 | F53: -7.127 | G53: 65.072 | H53: 3.433 | I53: 244.695
A54: 2019/12/03 01:00:00 | B54: 0.088 | C54: 0.242 | D54: 4.708 | E54: 0 | F54: -7.056 | G54: 66.847 | H54: 3.505 | I54: 243.134
A55: 2019/12/03 02:00:00 | B55: 0.021 | C55: 0.246 | D55: 4.753 | E55: 0 | F55: -4.998 | G55: 66.023 | H55: 5.089 | I55: 259.019
A56: 2019/12/03 03:00:00 | B56: 0.036 | C56: 0.293 | D56: 4.99 | E56: 0 | F56: -3.739 | G56: 65.868 | H56: 4.838 | I56: 272.244
A57: 2019/12/03 04:00:00 | B57: 0.04 | C57: 0.275 | D57: 5.621 | E57: 0 | F57: -4.418 | G57: 66.408 | H57: 5.022 | I57: 261.884
A58: 2019/12/03 05:00:00 | B58: 0.01 | C58: 0.234 | D58: 5.035 | E58: 0 | F58: -4.169 | G58: 65.97 | H58: 3.917 | I58: 261.606
A59: 2019/12/03 06:00:00 | B59: 0.041 | C59: 0.251 | D59: 3.466 | E59: 0 | F59: -4.156 | G59: 65.299 | H59: 4.291 | I59: 267.137
A60: 2019/12/03 07:00:00 | B60: 0.026 | C60: 0.32 | D60: 2.343 | E60: 0 | F60: -4.332 | G60: 65.146 | H60: 4.339 | I60: 266.413
A61: 2019/12/03 08:00:00 | B61: 0.008 | C61: 0.286 | D61: 1.305 | E61: 0 | F61: -3.304 | G61: 62.87 | H61: 5.046 | I61: 265.45
A62: 2019/12/03 09:00:00 | B62: 0.041 | C62: 0.299 | D62: 0.954 | E62: 0 | F62: -1.697 | G62: 61.323 | H62: 4.928 | I62: 252.542
A63: 2019/12/03 10:00:00 | B63: 0.106 | C63: 0.343 | D63: 0.778 | E63: 0 | F63: -0.162 | G63: 59.73 | H63: 5.057 | I63: 267.656
A64: 2019/12/03 11:00:00 | B64: 0.095 | C64: 0.305 | D64: 1.003 | E64: 0 | F64: -0.507 | G64: 62.078 | H64: 3.031 | I64: 256.584
A65: 2019/12/03 12:00:00 | B65: 0.133 | C65: 0.218 | D65: 0.965 | E65: 0 | F65: 0.473 | G65: 60.301 | H65: 3.527 | I65: 276.249
A66: 2019/12/03 13:00:00 | B66: 0.105 | C66: 0.29 | D66: 1.16 | E66: 0 | F66: 1.558 | G66: 60.148 | H66: 3.691 | I66: 282.129
A67: 2019/12/03 14:00:00 | B67: 0.12 | C67: 0.282 | D67: 1.208 | E67: 0 | F67: 2.641 | G67: 58.514 | H67: 4.066 | I67: 282.022
A68: 2019/12/03 15:00:00 | B68: 0.226 | C68: 0.221 | D68: 1.374 | E68: 0 | F68: 3.479 | G68: 57.527 | H68: 2.86 | I68: 290.409
A69: 2019/12/03 16:00:00 | B69: 0.126 | C69: 0.298 | D69: 1.862 | E69: 0 | F69: 2.732 | G69: 60.811 | H69: 3.915 | I69: 277.244
A70: 2019/12/03 17:00:00 | B70: C | C70: C | D70: 2.146 | E70: 0 | F70: 1.943 | G70: 61.363 | H70: 2.708 | I70: 294.585
A71: 2019/12/03 18:00:00 | B71: C | C71: C | D71: 2.422 | E71: 0 | F71: 0.393 | G71: 62.475 | H71: 3.86 | I71: 286.052
A72: 2019/12/03 19:00:00 | B72: C | C72: C | D72: 3.177 | E72: 0 | F72: -1.523 | G72: 67.93 | H72: 3.825 | I72: 255.469
A73: 2019/12/03 20:00:00 | B73: C | C73: C | D73: 4.473 | E73: 0 | F73: -2.892 | G73: 70.3 | H73: 3.983 | I73: 245.353
A74: 2019/12/03 21:00:00 | B74: C | C74: C | D74: 3.264 | E74: 0 | F74: -2.956 | G74: 69.242 | H74: 4.322 | I74: 253.907
A75: 2019/12/03 22:00:00 | B75: C | C75: C | D75: 2.118 | E75: 0 | F75: -2.62 | G75: 68.392 | H75: 3.268 | I75: 281.912
A76: 2019/12/03 23:00:00 | B76: 0.207 | C76: 0.713 | D76: 1.707 | E76: 0 | F76: -3.696 | G76: 70.725 | H76: 1.246 | I76: 297.98
A77: 2019/12/04 00:00:00 | B77: 0.154 | C77: 0.385 | D77: 2.537 | E77: 0 | F77: -5.285 | G77: 73.669 | H77: 0.901 | I77: 300.137
A78: 2019/12/04 01:00:00 | B78: 0.141 | C78: 0.296 | D78: 2.666 | E78: 0 | F78: -4.69 | G78: 70.662 | H78: 1.024 | I78: 286.654
A79: 2019/12/04 02:00:00 | B79: 0.059 | C79: 0.363 | D79: 4.472 | E79: 0 | F79: -5.911 | G79: 73.392 | H79: 1.646 | I79: 228.109
A80: 2019/12/04 03:00:00 | B80: 0.051 | C80: 0.142 | D80: 6.448 | E80: 0 | F80: -7.537 | G80: 77.03 | H80: 1.405 | I80: 227.038
A81: 2019/12/04 04:00:00 | B81: 0.061 | C81: 0.329 | D81: 5.748 | E81: 0 | F81: -6.131 | G81: 74.763 | H81: 1.061 | I81: 251.486
A82: 2019/12/04 05:00:00 | B82: 0.107 | C82: 0.258 | D82: 7.434 | E82: 0 | F82: -6.175 | G82: 75.007 | H82: 0.679 | I82: 222.575
A83: 2019/12/04 06:00:00 | B83: 0.075 | C83: 0.343 | D83: 8.942 | E83: 0 | F83: -7.722 | G83: 76.918 | H83: 0.03 | I83: 294.814
A84: 2019/12/04 07:00:00 | B84: 0.093 | C84: 0.461 | D84: 10.191 | E84: 0 | F84: -7.952 | G84: 77.011 | H84: 0.084 | I84: 260.909
A85: 2019/12/04 08:00:00 | B85: 0.118 | C85: 0.461 | D85: 12.311 | E85: 0 | F85: -7.283 | G85: 79.014 | H85: 1.295 | I85: 36.637
A86: 2019/12/04 09:00:00 | B86: 0.106 | C86: 0.639 | D86: 10.069 | E86: 0 | F86: -8.649 | G86: 77.602 | H86: 0.281 | I86: 76.429
A87: 2019/12/04 10:00:00 | B87: 0.171 | C87: 0.53 | D87: 11.415 | E87: 0 | F87: -6.593 | G87: 76.986 | H87: 1.594 | I87: 66.289
A88: 2019/12/04 11:00:00 | B88: 0.215 | C88: 0.409 | D88: 6.16 | E88: 0 | F88: -5.901 | G88: 74.116 | H88: 1.537 | I88: 47.508
A89: 2019/12/04 12:00:00 | B89: 0.07 | C89: 0.259 | D89: 4.828 | E89: 0 | F89: -4.51 | G89: 71.988 | H89: 1.844 | I89: 37.18
A90: 2019/12/04 13:00:00 | B90: 0.085 | C90: 0.258 | D90: 3.092 | E90: 0 | F90: -2.427 | G90: 69.037 | H90: 2.44 | I90: 38.704
A91: 2019/12/04 14:00:00 | B91: 0.096 | C91: 0.185 | D91: 1.445 | E91: 0 | F91: -1.046 | G91: 64.872 | H91: 3.167 | I91: 40.15
A92: 2019/12/04 15:00:00 | B92: 0.166 | C92: 0.213 | D92: 1.41 | E92: 0 | F92: -0.726 | G92: 62.754 | H92: 3.122 | I92: 50.973
A93: 2019/12/04 16:00:00 | B93: 0.163 | C93: 0.208 | D93: 1.388 | E93: 0 | F93: -1.189 | G93: 64.302 | H93: 2.485 | I93: 35.854
A94: 2019/12/04 17:00:00 | B94: 0.12 | C94: 0.162 | D94: 1.78 | E94: 0 | F94: -1.681 | G94: 65.775 | H94: 1.995 | I94: 19.45
A95: 2019/12/04 18:00:00 | B95: 0.072 | C95: 0.242 | D95: 1.6 | E95: 0 | F95: -3.067 | G95: 67.006 | H95: 2.026 | I95: 8.917
A96: 2019/12/04 19:00:00 | B96: 0.119 | C96: 0.133 | D96: 2.541 | E96: 0 | F96: -4.719 | G96: 71.929 | H96: 1.752 | I96: 3.242
A97: 2019/12/04 20:00:00 | B97: 0.04 | C97: 0.179 | D97: 2.073 | E97: 0 | F97: -4.695 | G97: 69.986 | H97: 1.342 | I97: 350.595
A98: 2019/12/04 21:00:00 | B98: Z | C98: Z | D98: 1.644 | E98: 0 | F98: -4.851 | G98: 74.074 | H98: 1.363 | I98: 354.927
A99: 2019/12/04 22:00:00 | B99: 0.021 | C99: 0.212 | D99: 2.218 | E99: 0 | F99: -5.2 | G99: 79.75 | H99: 1.129 | I99: 345.369
A100: 2019/12/04 23:00:00 | B100: 0.013 | C100: 0.208 | D100: 2.205 | E100: 0 | F100: -5.381 | G100: 73.152 | H100: 1.165 | I100: 348.429
A101: 2019/12/05 00:00:00 | B101: 0.044 | C101: 0.14 | D101: 2.027 | E101: 0 | F101: -5.749 | G101: 70.553 | H101: 0.637 | I101: 331.03
A102: 2019/12/05 01:00:00 | B102: 0.008 | C102: 0.209 | D102: 2.644 | E102: 0 | F102: -6.073 | G102: 75.024 | H102: 0.655 | I102: 310.717
A103: 2019/12/05 02:00:00 | B103: 0.038 | C103: 0.136 | D103: 3.373 | E103: 0 | F103: -6.055 | G103: 77.603 | H103: 0.824 | I103: 319.3
A104: 2019/12/05 03:00:00 | B104: 0.017 | C104: 0.131 | D104: 4.393 | E104: 0 | F104: -5.842 | G104: 76.925 | H104: 0.684 | I104: 334.627
A105: 2019/12/05 04:00:00 | B105: 0.029 | C105: 0.12 | D105: 4.633 | E105: 0 | F105: -5.752 | G105: 77.682 | H105: 0.613 | I105: 306.375
A106: 2019/12/05 05:00:00 | B106: -0.023 | C106: 0.209 | D106: 6.315 | E106: 0 | F106: -5.533 | G106: 78.123 | H106: 0.724 | I106: 287.147
A107: 2019/12/05 06:00:00 | B107: -0.009 | C107: 0.1 | D107: 8.824 | E107: 0 | F107: -5.684 | G107: 80.604 | H107: 1.833 | I107: 283.945
A108: 2019/12/05 07:00:00 | B108: 0.033 | C108: 0.231 | D108: 9.269 | E108: 0 | F108: -5.49 | G108: 79.828 | H108: 1.58 | I108: 274.038
A109: 2019/12/05 08:00:00 | B109: 0.008 | C109: 0.428 | D109: 9.188 | E109: 0 | F109: -5.082 | G109: 78.453 | H109: 0.626 | I109: 290.729
A110: 2019/12/05 09:00:00 | B110: -0.028 | C110: 0.525 | D110: 9.784 | E110: 0 | F110: -5 | G110: 78.226 | H110: 0.969 | I110: 278.043
A111: 2019/12/05 10:00:00 | B111: 0.011 | C111: 0.152 | D111: 10.245 | E111: 0 | F111: -5.151 | G111: 79.618 | H111: 1.418 | I111: 263.553
A112: 2019/12/05 11:00:00 | B112: -0.004 | C112: 0.143 | D112: 8.182 | E112: 0 | F112: -4.955 | G112: 77.058 | H112: 1.675 | I112: 266.437
A113: 2019/12/05 12:00:00 | B113: 0.013 | C113: 0.155 | D113: 5.248 | E113: 0 | F113: -4.635 | G113: 73.033 | H113: 1.761 | I113: 223.844
A114: 2019/12/05 13:00:00 | B114: 0.012 | C114: 0.024 | D114: 4.67 | E114: 0 | F114: -3.427 | G114: 68.204 | H114: 2.126 | I114: 237.641
A115: 2019/12/05 14:00:00 | B115: 0.077 | C115: 0.069 | D115: 4.71 | E115: 0 | F115: -3.667 | G115: 68.915 | H115: 3.255 | I115: 225.285
A116: 2019/12/05 15:00:00 | B116: 0.064 | C116: -0.005 | D116: 4.207 | E116: 0 | F116: -4.004 | G116: 70.114 | H116: 3.446 | I116: 219.005
A117: 2019/12/05 16:00:00 | B117: 0.006 | C117: -0.043 | D117: 4.133 | E117: 0 | F117: -4.497 | G117: 72.122 | H117: 3.89 | I117: 218.002
A118: 2019/12/05 17:00:00 | B118: -0.033 | C118: -0.012 | D118: 6.225 | E118: 0 | F118: -5.939 | G118: 75.906 | H118: 4.189 | I118: 212.814
A119: 2019/12/05 18:00:00 | B119: -0.064 | C119: 0.04 | D119: 9.976 | E119: 0 | F119: -7.453 | G119: 81.147 | H119: 4.195 | I119: 215.164
A120: 2019/12/05 19:00:00 | B120: -0.086 | C120: -0.037 | D120: 11.342 | E120: 0 | F120: -8.337 | G120: 81.718 | H120: 3.67 | I120: 218.233
A121: 2019/12/05 20:00:00 | B121: Z | C121: Z | D121: 14.482 | E121: 0 | F121: -8.299 | G121: 83.732 | H121: 2.999 | I121: 224.082
A122: 2019/12/05 21:00:00 | B122: -0.075 | C122: -0.017 | D122: 10.798 | E122: 0 | F122: -6.923 | G122: 83.623 | H122: 3.67 | I122: 226.658
A123: 2019/12/05 22:00:00 | B123: -0.034 | C123: 0.023 | D123: 10.588 | E123: 0 | F123: -6.411 | G123: 83.745 | H123: 3.343 | I123: 242.273
A124: 2019/12/05 23:00:00 | B124: -0.084 | C124: -0.061 | D124: 10.41 | E124: 0 | F124: -5.98 | G124: 83.703 | H124: 3.764 | I124: 239.473
A125: 2019/12/06 00:00:00 | B125: -0.113 | C125: 0.037 | D125: 12.08 | E125: 0 | F125: -5.927 | G125: 83.63 | H125: 5.016 | I125: 228.745
A126: 2019/12/06 01:00:00 | B126: -0.043 | C126: -0.01 | D126: 10.789 | E126: 0 | F126: -5.716 | G126: 83.654 | H126: 5.358 | I126: 232.682
A127: 2019/12/06 02:00:00 | B127: -0.065 | C127: -0.052 | D127: 9.581 | E127: 0 | F127: -5.66 | G127: 83.556 | H127: 3.438 | I127: 240.378
A128: 2019/12/06 03:00:00 | B128: -0.078 | C128: -0.024 | D128: 7.976 | E128: 0 | F128: -5.627 | G128: 83.563 | H128: 3.199 | I128: 259.791
A129: 2019/12/06 04:00:00 | B129: -0.033 | C129: -0.046 | D129: 6.382 | E129: 0 | F129: -5.736 | G129: 83.432 | H129: 0.22 | I129: 248
A130: 2019/12/06 05:00:00 | B130: -0.069 | C130: 0.051 | D130: 7.702 | E130: 0 | F130: -5.678 | G130: 83.339 | H130: 0.303 | I130: 129.676
A131: 2019/12/06 06:00:00 | B131: -0.071 | C131: -0.061 | D131: 7.438 | E131: 0 | F131: -5.811 | G131: 82.663 | H131: 1.62 | I131: 191.083
A132: 2019/12/06 07:00:00 | B132: -0.082 | C132: 0.048 | D132: 8.44 | E132: 0 | F132: -6.097 | G132: 82.743 | H132: 0.831 | I132: 267.977
A133: 2019/12/06 08:00:00 | B133: -0.027 | C133: 0.084 | D133: 8.291 | E133: 0 | F133: -6.085 | G133: 82.837 | H133: 0.634 | I133: 258.666
A134: 2019/12/06 09:00:00 | B134: -0.074 | C134: 0.037 | D134: 6.222 | E134: 0 | F134: -6.684 | G134: 82.464 | H134: 1.526 | I134: 317.475
A135: 2019/12/06 10:00:00 | B135: -0.089 | C135: 0.003 | D135: 6.633 | E135: 0 | F135: -6.841 | G135: 81.742 | H135: 1.197 | I135: 253.138
A136: 2019/12/06 11:00:00 | B136: -0.059 | C136: 0.037 | D136: 6.793 | E136: 0 | F136: -6.465 | G136: 80.631 | H136: 1.186 | I136: 58.158
A137: 2019/12/06 12:00:00 | B137: -0.053 | C137: 0.104 | D137: 9.109 | E137: 0 | F137: -6.023 | G137: 81.805 | H137: 0.469 | I137: 180.915
A138: 2019/12/06 13:00:00 | B138: -0.038 | C138: 0.058 | D138: 6.517 | E138: 0 | F138: -5.141 | G138: 80.651 | H138: 1.57 | I138: 209.914
A139: 2019/12/06 14:00:00 | B139: -0.044 | C139: 0.102 | D139: 5.863 | E139: 0 | F139: -4.805 | G139: 79.878 | H139: 0.521 | I139: 128.555
A140: 2019/12/06 15:00:00 | B140: -0.056 | C140: 0.188 | D140: 4.768 | E140: 0 | F140: -4.695 | G140: 80.11 | H140: 1.801 | I140: 80.896
A141: 2019/12/06 16:00:00 | B141: -0.069 | C141: 0.095 | D141: 4.69 | E141: 0 | F141: -4.799 | G141: 79.555 | H141: 1.804 | I141: 126.502
A142: 2019/12/06 17:00:00 | B142: -0.038 | C142: 0.132 | D142: 8.39 | E142: 0 | F142: -5.938 | G142: 79.671 | H142: 2.484 | I142: 204.882
A143: 2019/12/06 18:00:00 | B143: -0.014 | C143: 0.311 | D143: 10.585 | E143: 0 | F143: -6.879 | G143: 79.911 | H143: 2.21 | I143: 207.489
A144: 2019/12/06 19:00:00 | B144: Z | C144: Z | D144: 7.907 | E144: 0 | F144: -7.472 | G144: 79.077 | H144: 2.572 | I144: 183.198
A145: 2019/12/06 20:00:00 | B145: -0.041 | C145: 0.213 | D145: 7.599 | E145: 0 | F145: -8.95 | G145: 79.462 | H145: 1.926 | I145: 177.401
A146: 2019/12/06 21:00:00 | B146: -0.029 | C146: 0.162 | D146: 7.501 | E146: 0 | F146: -9.792 | G146: 80.822 | H146: 2.256 | I146: 196.058
A147: 2019/12/06 22:00:00 | B147: -0.014 | C147: -0.001 | D147: 7.426 | E147: 0 | F147: -9.439 | G147: 81.53 | H147: 1.629 | I147: 178.198
A148: 2019/12/06 23:00:00 | B148: -0.057 | C148: 0.089 | D148: 6.53 | E148: 0 | F148: -9.342 | G148: 80.557 | H148: 1.239 | I148: 179.649
A149: 2019/12/07 00:00:00 | B149: -0.01 | C149: 0.077 | D149: 5.444 | E149: 0 | F149: -8.649 | G149: 79.176 | H149: 0.998 | I149: 202.064
A150: 2019/12/07 01:00:00 | B150: 0.034 | C150: 0.054 | D150: 5.425 | E150: 0 | F150: -8.767 | G150: 78.724 | H150: 1.731 | I150: 218.683
A151: 2019/12/07 02:00:00 | B151: 0.024 | C151: 0.063 | D151: 5.822 | E151: 0 | F151: -8.969 | G151: 77.811 | H151: 1.108 | I151: 242.905
A152: 2019/12/07 03:00:00 | B152: -0.014 | C152: 0.102 | D152: 6.317 | E152: 0 | F152: -9.179 | G152: 77.458 | H152: 0.073 | I152: 306.286
A153: 2019/12/07 04:00:00 | B153: -0.007 | C153: 0.048 | D153: 7.177 | E153: 0 | F153: -9.401 | G153: 76.736 | H153: 0.944 | I153: 249.385
A154: 2019/12/07 05:00:00 | B154: 0.03 | C154: 0.185 | D154: 8.894 | E154: 0 | F154: -7.678 | G154: 76.762 | H154: 0.525 | I154: 270.576
A155: 2019/12/07 06:00:00 | B155: 0.027 | C155: 0.26 | D155: 13.483 | E155: 0 | F155: -8.375 | G155: 77.006 | H155: 0.794 | I155: 315.778
A156: 2019/12/07 07:00:00 | B156: 0.025 | C156: 0.078 | D156: 12.617 | E156: 0 | F156: -9.144 | G156: 80.53 | H156: 0.974 | I156: 325.808
A157: 2019/12/07 08:00:00 | B157: 0.077 | C157: 0.037 | D157: 12.259 | E157: 0 | F157: -8.682 | G157: 81.192 | H157: 0.86 | I157: 347.399
A158: 2019/12/07 09:00:00 | B158: 0.03 | C158: 0.067 | D158: 13.531 | E158: 0 | F158: -8.24 | G158: 83.039 | H158: 1.294 | I158: 14.171
A159: 2019/12/07 10:00:00 | B159: 0.023 | C159: 0.066 | D159: 13.698 | E159: 0 | F159: -7.675 | G159: 82.84 | H159: 1.657 | I159: 17.093
A160: 2019/12/07 11:00:00 | B160: 0.075 | C160: 0.13 | D160: 13.85 | E160: 0 | F160: -7.67 | G160: 82.26 | H160: 1.756 | I160: 9.959
A161: 2019/12/07 12:00:00 | B161: 0.136 | C161: 0.029 | D161: 10.601 | E161: 0 | F161: -7.346 | G161: 81.568 | H161: 1.815 | I161: 8.359
A162: 2019/12/07 13:00:00 | B162: 0.32 | C162: 0.074 | D162: 7.733 | E162: 0 | F162: -6.71 | G162: 80.651 | H162: 2.773 | I162: 16.241
A163: 2019/12/07 14:00:00 | B163: 0.246 | C163: 0.065 | D163: 8.707 | E163: 0 | F163: -6.307 | G163: 79.435 | H163: 4.159 | I163: 21.864
A164: 2019/12/07 15:00:00 | B164: 0.17 | C164: 0.166 | D164: 7.131 | E164: 0 | F164: -6.459 | G164: 77.485 | H164: 3.959 | I164: 22.599
A165: 2019/12/07 16:00:00 | B165: 0.152 | C165: 0.222 | D165: 4.697 | E165: 0 | F165: -7.589 | G165: 77.242 | H165: 4.086 | I165: 14.164
A166: 2019/12/07 17:00:00 | B166: 0.127 | C166: 0.022 | D166: 3.478 | E166: 0 | F166: -9.084 | G166: 79.404 | H166: 4.325 | I166: 15.926
A167: 2019/12/07 18:00:00 | B167: Z | C167: Z | D167: 2.739 | E167: 0 | F167: -9.733 | G167: 79.093 | H167: 3.724 | I167: 16.829
A168: 2019/12/07 19:00:00 | B168: 0.148 | C168: 0.175 | D168: 2.624 | E168: 0 | F168: -10.445 | G168: 75.566 | H168: 3.679 | I168: 18.205
A169: 2019/12/07 20:00:00 | B169: 0.146 | C169: 0.15 | D169: 2.873 | E169: 0 | F169: -11.331 | G169: 73.474 | H169: 3.585 | I169: 18.049
A170: 2019/12/07 21:00:00 | B170: 0.168 | C170: 0.218 | D170: 2.943 | E170: 0 | F170: -11.506 | G170: 69.39 | H170: 2.913 | I170: 27.61
A171: 2019/12/07 22:00:00 | B171: 0.143 | C171: 0.144 | D171: 3.023 | E171: 0 | F171: -12.457 | G171: 69.856 | H171: 3.022 | I171: 30.939
A172: 2019/12/07 23:00:00 | B172: 0.101 | C172: 0.132 | D172: 3.105 | E172: 0 | F172: -12.968 | G172: 69.995 | H172: 3.318 | I172: 27.735
A173: 2019/12/08 00:00:00 | B173: 0.092 | C173: 0.129 | D173: 3.112 | E173: 0 | F173: -13.713 | G173: 70.568 | H173: 3.359 | I173: 32.209
A174: 2019/12/08 01:00:00 | B174: 0.093 | C174: 0.114 | D174: 2.815 | E174: 0 | F174: -14.62 | G174: 71.043 | H174: 3.138 | I174: 35.089
A175: 2019/12/08 02:00:00 | B175: 0.038 | C175: 0.11 | D175: 2.741 | E175: 0 | F175: -15.222 | G175: 71.946 | H175: 2.827 | I175: 38.194
A176: 2019/12/08 03:00:00 | B176: 0.087 | C176: 0.024 | D176: 2.436 | E176: 0 | F176: -15.747 | G176: 73.335 | H176: 2.646 | I176: 40.814
A177: 2019/12/08 04:00:00 | B177: 0.094 | C177: 0.007 | D177: 2.396 | E177: 0 | F177: -16.123 | G177: 74.027 | H177: 2.467 | I177: 35.207
A178: 2019/12/08 05:00:00 | B178: 0.068 | C178: 0.017 | D178: 2.001 | E178: 0 | F178: -16.181 | G178: 74.398 | H178: 2.018 | I178: 43.348
A179: 2019/12/08 06:00:00 | B179: 0.076 | C179: 0.016 | D179: 2.301 | E179: 0 | F179: -16.083 | G179: 72.399 | H179: 2.364 | I179: 47.424
A180: 2019/12/08 07:00:00 | B180: 0.06 | C180: 0.071 | D180: 1.995 | E180: 0 | F180: -16.483 | G180: 72.65 | H180: 2.046 | I180: 55.566
A181: 2019/12/08 08:00:00 | B181: 0.04 | C181: 0.041 | D181: 1.739 | E181: 0 | F181: -17 | G181: 71.396 | H181: 1.948 | I181: 113.677
A182: 2019/12/08 09:00:00 | B182: -0.003 | C182: 0.082 | D182: 2.013 | E182: 0 | F182: -18.007 | G182: 71.735 | H182: 1.426 | I182: 131.291
A183: 2019/12/08 10:00:00 | B183: 0.063 | C183: 0.03 | D183: 2.313 | E183: 0 | F183: -18.972 | G183: 71.798 | H183: 1.436 | I183: 163.796
A184: 2019/12/08 11:00:00 | B184: 0.061 | C184: 0.125 | D184: 2.713 | E184: 0 | F184: -19.043 | G184: 70.902 | H184: 1.338 | I184: 195.064
A185: 2019/12/08 12:00:00 | B185: 0.066 | C185: 0.041 | D185: 2.159 | E185: 0 | F185: -18.229 | G185: 68.503 | H185: 1.851 | I185: 189.025
A186: 2019/12/08 13:00:00 | B186: -0.009 | C186: 0.099 | D186: 1.663 | E186: 0 | F186: -17.52 | G186: 67.738 | H186: 2.411 | I186: 193.365
A187: 2019/12/08 14:00:00 | B187: 0.062 | C187: 0.038 | D187: 1.441 | E187: 0 | F187: -15.975 | G187: 68.464 | H187: 3.237 | I187: 215.799
A188: 2019/12/08 15:00:00 | B188: 0.023 | C188: 0.012 | D188: 1.405 | E188: 0 | F188: -14.451 | G188: 66.655 | H188: 2.824 | I188: 230.2
A189: 2019/12/08 16:00:00 | B189: 0.074 | C189: 0.068 | D189: 1.659 | E189: 0 | F189: -14.505 | G189: 68.067 | H189: 2.795 | I189: 228.387
A190: 2019/12/08 17:00:00 | B190: Z | C190: Z | D190: 2.029 | E190: 0 | F190: -15.364 | G190: 69.392 | H190: 2.008 | I190: 228.886
A191: 2019/12/08 18:00:00 | B191: 0.057 | C191: 0.182 | D191: 3.234 | E191: 0 | F191: -16.214 | G191: 73.159 | H191: 2.887 | I191: 223.555
A192: 2019/12/08 19:00:00 | B192: 0.086 | C192: 0.104 | D192: 4.019 | E192: 0 | F192: -14.733 | G192: 74.141 | H192: 3.942 | I192: 222.367
A193: 2019/12/08 20:00:00 | B193: 0.026 | C193: 0.079 | D193: 3.531 | E193: 0 | F193: -13.467 | G193: 73.601 | H193: 4.508 | I193: 223.922
A194: 2019/12/08 21:00:00 | B194: 0.022 | C194: 0.03 | D194: 3.1 | E194: 0 | F194: -12.901 | G194: 72.732 | H194: 4.422 | I194: 230.737
A195: 2019/12/08 22:00:00 | B195: -0.01 | C195: 0.034 | D195: 3.125 | E195: 0 | F195: -13.03 | G195: 72.883 | H195: 5.465 | I195: 228.379
A196: 2019/12/08 23:00:00 | B196: 0.068 | C196: 0.07 | D196: 3.382 | E196: 0.03 | F196: -13.094 | G196: 72.586 | H196: 5.352 | I196: 234.132
A197: 2019/12/09 00:00:00 | B197: 0.023 | C197: 0.028 | D197: 3.893 | E197: 0 | F197: -13.894 | G197: 73.142 | H197: 5.73 | I197: 241.237
A198: 2019/12/09 01:00:00 | B198: -0.028 | C198: 0.09 | D198: 2.936 | E198: 0 | F198: -13.274 | G198: 73.823 | H198: 5.721 | I198: 247.326
A199: 2019/12/09 02:00:00 | B199: 0.013 | C199: 0.073 | D199: 3.108 | E199: 0 | F199: -12.079 | G199: 73.092 | H199: 6.334 | I199: 264.979
A200: 2019/12/09 03:00:00 | B200: -0.003 | C200: 0.166 | D200: 3.48 | E200: 0 | F200: -10.695 | G200: 73.244 | H200: 3.976 | I200: 282.781
A201: 2019/12/09 04:00:00 | B201: 0.064 | C201: 0.127 | D201: 3.845 | E201: 0 | F201: -8.753 | G201: 74.478 | H201: 2.939 | I201: 317.853
... 556 more rows

Sheet Maidstone
A1: =Kerrobert!A1 -> Group: Global WYAMZ - Monthly Monthly: 12/2019 Type: AVG 1 Hr.
A3: Date & Time | B3: Maidstone | C3: Maidstone | D3: Maidstone | E3: Maidstone | F3: Maidstone | G3: Maidstone | H3: Maidstone | I3: Maidstone | J3: Maidstone | K3: Maidstone | L3: Maidstone
B4: SO2 | C4: NO | D4: NO2 | E4: NOX | F4: H2S | G4: PM25 | H4: PRECIP | I4: TEMPERAT | J4: RH | K4: WS | L4: WD
B5: ppb | C5: ppb | D5: ppb | E5: ppb | F5: ppb | G5: ug/m3(L) | H5: mm | I5: C° | J5: %RH | K5: m/s | L5: Deg
A6: 2019/12/01 01:00:00 | B6: Z | C6: Z | D6: Z | E6: Z | F6: Z | G6: 2.608 | H6: 0 | I6: -7.985 | J6: 76.975 | K6: 2.677 | L6: 159.856
A7: 2019/12/01 02:00:00 | B7: 0.113 | C7: -0.098 | D7: 1.407 | E7: 1.309 | F7: 0.162 | G7: 2.609 | H7: 0 | I7: -7.641 | J7: 76.051 | K7: 3.608 | L7: 181.756
A8: 2019/12/01 03:00:00 | B8: 0.058 | C8: -0.055 | D8: 1.286 | E8: 1.23 | F8: -0.041 | G8: 2.804 | H8: 0 | I8: -7.729 | J8: 75.657 | K8: 3.104 | L8: 178.784
A9: 2019/12/01 04:00:00 | B9: 0.057 | C9: -0.037 | D9: 1.452 | E9: 1.416 | F9: 0.024 | G9: 2.892 | H9: 0 | I9: -7.885 | J9: 75.955 | K9: 3.497 | L9: 178.899
A10: 2019/12/01 05:00:00 | B10: 0.074 | C10: -0.061 | D10: 1.592 | E10: 1.532 | F10: 0.001 | G10: 3.191 | H10: 0 | I10: -7.917 | J10: 76.137 | K10: 2.603 | L10: 184.787
A11: 2019/12/01 06:00:00 | B11: 0.072 | C11: -0.037 | D11: 2.204 | E11: 2.167 | F11: 0.024 | G11: 3.534 | H11: 0 | I11: -7.743 | J11: 76.149 | K11: 2.295 | L11: 171.752
A12: 2019/12/01 07:00:00 | B12: 0.059 | C12: 0.011 | D12: 2.038 | E12: 2.051 | F12: 0.023 | G12: 3.721 | H12: 0 | I12: -8.132 | J12: 77.274 | K12: 3.158 | L12: 164.189
A13: 2019/12/01 08:00:00 | B13: 0.118 | C13: 0.025 | D13: 1.831 | E13: 1.855 | F13: 0.101 | G13: 4.429 | H13: 0 | I13: -8.228 | J13: 79.195 | K13: 3.566 | L13: 162.995
A14: 2019/12/01 09:00:00 | B14: 0.005 | C14: 0.307 | D14: 1.901 | E14: 2.209 | F14: 0.032 | G14: 4.539 | H14: 0 | I14: -8.387 | J14: 80.043 | K14: 3.673 | L14: 161.531
A15: 2019/12/01 10:00:00 | B15: 0.048 | C15: 0.074 | D15: 1.708 | E15: 1.783 | F15: -0.05 | G15: 5.069 | H15: 0 | I15: -8.729 | J15: 80.291 | K15: 3.823 | L15: 154.292
A16: 2019/12/01 11:00:00 | B16: 0.136 | C16: 0.29 | D16: 1.776 | E16: 2.067 | F16: 0.041 | G16: 4.376 | H16: 0 | I16: -9.246 | J16: 75.747 | K16: 4.19 | L16: 153.905
A17: 2019/12/01 12:00:00 | B17: 0.054 | C17: 0.527 | D17: 1.722 | E17: 2.249 | F17: 0.009 | G17: 3.494 | H17: 0 | I17: -9.319 | J17: 70.593 | K17: 3.983 | L17: 159.55
A18: 2019/12/01 13:00:00 | B18: 0.174 | C18: 0.718 | D18: 1.754 | E18: 2.474 | F18: -0.069 | G18: 2.896 | H18: 0 | I18: -8.768 | J18: 66.991 | K18: 3.226 | L18: 159.133
A19: 2019/12/01 14:00:00 | B19: 0.19 | C19: 0.854 | D19: 2.016 | E19: 2.87 | F19: -0.047 | G19: 2.595 | H19: 0 | I19: -7.809 | J19: 63.743 | K19: 2.723 | L19: 165.735
A20: 2019/12/01 15:00:00 | B20: 0.279 | C20: 0.654 | D20: 2.039 | E20: 2.693 | F20: 0.04 | G20: 2.162 | H20: 0 | I20: -7.02 | J20: 60.641 | K20: 1.803 | L20: 164.775
A21: 2019/12/01 16:00:00 | B21: 0.172 | C21: 0.727 | D21: 2.66 | E21: 3.39 | F21: -0.055 | G21: 2.353 | H21: 0 | I21: -6.867 | J21: 60.166 | K21: 1.738 | L21: 156.637
A22: 2019/12/01 17:00:00 | B22: 0.137 | C22: 1.669 | D22: 5.783 | E22: 7.453 | F22: 0.028 | G22: 3.096 | H22: 0 | I22: -8.632 | J22: 62.86 | K22: 0.268 | L22: 133.46
A23: 2019/12/01 18:00:00 | B23: 0.015 | C23: 1.119 | D23: 6.535 | E23: 7.655 | F23: 0.098 | G23: 5.451 | H23: 0 | I23: -11.523 | J23: 69.968 | K23: 0.269 | L23: 155.856
A24: 2019/12/01 19:00:00 | B24: 0.149 | C24: 0.132 | D24: 6.961 | E24: 7.095 | F24: 0.043 | G24: 6.998 | H24: 0 | I24: -12.993 | J24: 73.85 | K24: 0.404 | L24: 173.801
A25: 2019/12/01 20:00:00 | B25: 0.067 | C25: 0.06 | D25: 4.945 | E25: 5.006 | F25: 0.125 | G25: 7.607 | H25: 0 | I25: -13.554 | J25: 74.805 | K25: 0.49 | L25: 177.102
A26: 2019/12/01 21:00:00 | B26: 0.068 | C26: 0.119 | D26: 7.217 | E26: 7.338 | F26: 0.349 | G26: 7.096 | H26: 0 | I26: -13.63 | J26: 71.217 | K26: 0.217 | L26: 288.856
A27: 2019/12/01 22:00:00 | B27: 0.209 | C27: 0.58 | D27: 8.451 | E27: 9.033 | F27: 0.054 | G27: 7.207 | H27: 0 | I27: -15.506 | J27: 71.731 | K27: 0.176 | L27: 159.048
A28: 2019/12/01 23:00:00 | B28: 0.008 | C28: 1.697 | D28: 10.084 | E28: 11.784 | F28: 0.205 | G28: 7.594 | H28: 0 | I28: -16.819 | J28: 72.066 | K28: 0.143 | L28: 243.54
A29: 2019/12/02 00:00:00 | B29: Z | C29: Z | D29: Z | E29: Z | F29: Z | G29: 7.737 | H29: 0 | I29: -17.661 | J29: 71.428 | K29: 0.289 | L29: 187.675
A30: 2019/12/02 01:00:00 | B30: 0.237 | C30: 7.538 | D30: 13.468 | E30: 21.009 | F30: 0.496 | G30: 8.439 | H30: 0 | I30: -18.645 | J30: 72.082 | K30: 0.083 | L30: 210.028
A31: 2019/12/02 02:00:00 | B31: 0.199 | C31: 8.936 | D31: 11.904 | E31: 20.842 | F31: 0.455 | G31: 7.93 | H31: 0 | I31: -19.411 | J31: 72.441 | K31: 0.565 | L31: 151.448
A32: 2019/12/02 03:00:00 | B32: 0.21 | C32: 10.571 | D32: 13.555 | E32: 24.128 | F32: 0.471 | G32: 7.861 | H32: 0 | I32: -18.848 | J32: 70.762 | K32: 0.841 | L32: 320.779
A33: 2019/12/02 04:00:00 | B33: 0.123 | C33: 10.589 | D33: 12.615 | E33: 23.206 | F33: 0.56 | G33: 7.074 | H33: 0 | I33: -18.157 | J33: 71.367 | K33: 0.075 | L33: 174.443
A34: 2019/12/02 05:00:00 | B34: 0.094 | C34: 4.066 | D34: 13.622 | E34: 17.69 | F34: 0.428 | G34: 6.698 | H34: 0 | I34: -15.559 | J34: 73.239 | K34: 0.817 | L34: 141.793
A35: 2019/12/02 06:00:00 | B35: 0.17 | C35: 7.079 | D35: 15.188 | E35: 22.269 | F35: 0.404 | G35: 5.799 | H35: 0 | I35: -13.817 | J35: 73.078 | K35: 0.677 | L35: 120.394
A36: 2019/12/02 07:00:00 | B36: 0.173 | C36: 7.325 | D36: 15.873 | E36: 23.2 | F36: 0.503 | G36: 5.424 | H36: 0 | I36: -12.434 | J36: 72.188 | K36: 0.349 | L36: 116.907
A37: 2019/12/02 08:00:00 | B37: 0.097 | C37: 7.377 | D37: 16.167 | E37: 23.548 | F37: 0.716 | G37: 5.265 | H37: 0 | I37: -11.143 | J37: 71.576 | K37: 0.524 | L37: 329.492
A38: 2019/12/02 09:00:00 | B38: 0.186 | C38: 4.44 | D38: 15.251 | E38: 19.693 | F38: 0.41 | G38: 6.055 | H38: 0 | I38: -10.045 | J38: 73.554 | K38: 0.433 | L38: 245.619
A39: 2019/12/02 10:00:00 | B39: 0.13 | C39: 0.961 | D39: 12.487 | E39: 13.45 | F39: 0.211 | G39: 5.872 | H39: 0 | I39: -7.621 | J39: 71.581 | K39: 0.208 | L39: 188.557
A40: 2019/12/02 11:00:00 | B40: 0.437 | C40: 0.995 | D40: 7.721 | E40: 8.72 | F40: 0.106 | G40: 3.812 | H40: 0 | I40: -4.431 | J40: 61.602 | K40: 0.791 | L40: 315.452
A41: 2019/12/02 12:00:00 | B41: 0.47 | C41: 1.947 | D41: 8.361 | E41: 10.31 | F41: 0.094 | G41: 2.976 | H41: 0 | I41: -3.584 | J41: 58.522 | K41: 0.25 | L41: 320.939
A42: 2019/12/02 13:00:00 | B42: 0.408 | C42: 1.78 | D42: 6.647 | E42: 8.428 | F42: 0.14 | G42: 2.12 | H42: 0 | I42: -2.392 | J42: 58.488 | K42: 1.908 | L42: 251.27
A43: 2019/12/02 14:00:00 | B43: 0.908 | C43: 1.618 | D43: 5.543 | E43: 7.164 | F43: 0.16 | G43: 1.998 | H43: 0 | I43: -1.851 | J43: 56.671 | K43: 1.61 | L43: 244.972
A44: 2019/12/02 15:00:00 | B44: 0.799 | C44: 1.229 | D44: 5.359 | E44: 6.59 | F44: 0.047 | G44: 2.543 | H44: 0 | I44: -1.836 | J44: 59.287 | K44: 1.548 | L44: 243.164
A45: 2019/12/02 16:00:00 | B45: 0.88 | C45: 0.749 | D45: 5.815 | E45: 6.565 | F45: 0.011 | G45: 2.621 | H45: 0 | I45: -0.634 | J45: 55.753 | K45: 1.991 | L45: 293.591
A46: 2019/12/02 17:00:00 | B46: 0.918 | C46: 0.386 | D46: 5.67 | E46: 6.058 | F46: -0.017 | G46: 2.6 | H46: 0 | I46: -0.979 | J46: 54.29 | K46: 1.858 | L46: 283.455
A47: 2019/12/02 18:00:00 | B47: 0.527 | C47: 0.13 | D47: 7.009 | E47: 7.142 | F47: 0.01 | G47: 3.464 | H47: 0 | I47: -2.683 | J47: 58.658 | K47: 1.147 | L47: 274.362
A48: 2019/12/02 19:00:00 | B48: 0.367 | C48: 0.045 | D48: 7.061 | E48: 7.109 | F48: 0.029 | G48: 4.373 | H48: 0 | I48: -4.275 | J48: 63.937 | K48: 1.153 | L48: 286.947
A49: 2019/12/02 20:00:00 | B49: 0.325 | C49: 0.122 | D49: 6.426 | E49: 6.549 | F49: 0.004 | G49: 4.326 | H49: 0 | I49: -4.919 | J49: 65.278 | K49: 0.968 | L49: 255.736
A50: 2019/12/02 21:00:00 | B50: 0.264 | C50: 0.047 | D50: 6.16 | E50: 6.209 | F50: 0.027 | G50: 4.338 | H50: 0 | I50: -4.472 | J50: 64.761 | K50: 1.336 | L50: 257.156
A51: 2019/12/02 22:00:00 | B51: 0.479 | C51: 0.091 | D51: 6.22 | E51: 6.314 | F51: -0.042 | G51: 3.656 | H51: 0 | I51: -3.786 | J51: 62.26 | K51: 1.325 | L51: 265.953
A52: 2019/12/02 23:00:00 | B52: Z | C52: Z | D52: Z | E52: Z | F52: Z | G52: 2.97 | H52: 0 | I52: -2.657 | J52: 60.438 | K52: 1.362 | L52: 256.384
A53: 2019/12/03 00:00:00 | B53: 1.208 | C53: 0.084 | D53: 4.973 | E53: 5.06 | F53: 0.118 | G53: 2.22 | H53: 0 | I53: -1.385 | J53: 58.744 | K53: 1.399 | L53: 270.174
A54: 2019/12/03 01:00:00 | B54: 1.037 | C54: 0.013 | D54: 3.99 | E54: 4.006 | F54: -0.001 | G54: 2.278 | H54: 0 | I54: -0.659 | J54: 57.395 | K54: 1.891 | L54: 267.194
A55: 2019/12/03 02:00:00 | B55: 0.692 | C55: 0.061 | D55: 3.933 | E55: 3.996 | F55: 0.08 | G55: 2.181 | H55: 0 | I55: -0.396 | J55: 58.656 | K55: 1.398 | L55: 282.361
A56: 2019/12/03 03:00:00 | B56: 0.495 | C56: 0.025 | D56: 4.83 | E56: 4.856 | F56: -0.012 | G56: 2.23 | H56: 0 | I56: 0.222 | J56: 59.516 | K56: 2.028 | L56: 298.055
A57: 2019/12/03 04:00:00 | B57: 0.855 | C57: -0.008 | D57: 4.557 | E57: 4.551 | F57: -0.037 | G57: 2.313 | H57: 0 | I57: -0.005 | J57: 60.416 | K57: 2.197 | L57: 297.724
A58: 2019/12/03 05:00:00 | B58: 0.524 | C58: 0.093 | D58: 3.139 | E58: 3.234 | F58: -0.059 | G58: 2.406 | H58: 0 | I58: -0.057 | J58: 60.588 | K58: 2.123 | L58: 291.258
A59: 2019/12/03 06:00:00 | B59: 0.644 | C59: -0.034 | D59: 3.405 | E59: 3.371 | F59: -0.021 | G59: 2.587 | H59: 0 | I59: -0.663 | J59: 61.464 | K59: 1.784 | L59: 286.033
A60: 2019/12/03 07:00:00 | B60: 0.457 | C60: 0.086 | D60: 2.857 | E60: 2.945 | F60: 0.02 | G60: 2.714 | H60: 0 | I60: -1.056 | J60: 62.472 | K60: 1.993 | L60: 274.101
A61: 2019/12/03 08:00:00 | B61: 0.3 | C61: 0 | D61: 2.466 | E61: 2.467 | F61: 0.108 | G61: 2.349 | H61: 0 | I61: -0.248 | J61: 61.68 | K61: 2.704 | L61: 286.004
A62: 2019/12/03 09:00:00 | B62: 0.331 | C62: 0.096 | D62: 3.041 | E62: 3.14 | F62: -0.055 | G62: 2.115 | H62: 0 | I62: -0.437 | J62: 61.722 | K62: 3.097 | L62: 289.622
A63: 2019/12/03 10:00:00 | B63: 0.43 | C63: 0.187 | D63: 3.367 | E63: 3.555 | F63: -0.039 | G63: 1.993 | H63: 0 | I63: 0.198 | J63: 60.118 | K63: 3.07 | L63: 288.779
A64: 2019/12/03 11:00:00 | B64: 0.367 | C64: 0.475 | D64: 3.014 | E64: 3.49 | F64: -0.103 | G64: 1.751 | H64: 0 | I64: 1.252 | J64: 59.059 | K64: 3.021 | L64: 292.046
A65: 2019/12/03 12:00:00 | B65: 0.327 | C65: 0.662 | D65: 2.381 | E65: 3.043 | F65: -0.06 | G65: 1.696 | H65: 0 | I65: 3.046 | J65: 55.712 | K65: 3.835 | L65: 290.217
A66: 2019/12/03 13:00:00 | B66: 0.326 | C66: 0.527 | D66: 1.723 | E66: 2.25 | F66: -0.118 | G66: 1.719 | H66: 0 | I66: 4.149 | J66: 53.022 | K66: 3.669 | L66: 292.247
A67: 2019/12/03 14:00:00 | B67: 0.378 | C67: 0.507 | D67: 1.662 | E67: 2.17 | F67: 0.01 | G67: 1.757 | H67: 0 | I67: 4.671 | J67: 50.553 | K67: 3.824 | L67: 291.327
A68: 2019/12/03 15:00:00 | B68: 0.311 | C68: 0.36 | D68: 1.565 | E68: 1.926 | F68: 0.133 | G68: 1.739 | H68: 0 | I68: 4.483 | J68: 51.297 | K68: 3.774 | L68: 289.459
A69: 2019/12/03 16:00:00 | B69: 0.144 | C69: 0.391 | D69: 2.006 | E69: 2.399 | F69: 0.156 | G69: 1.723 | H69: 0 | I69: 4.004 | J69: 52.889 | K69: 3.482 | L69: 290.358
A70: 2019/12/03 17:00:00 | B70: 0.349 | C70: 0.247 | D70: 2.542 | E70: 2.789 | F70: 0.108 | G70: 2.033 | H70: 0 | I70: 3.003 | J70: 56.093 | K70: 2.84 | L70: 294.195
A71: 2019/12/03 18:00:00 | B71: 0.295 | C71: 0.124 | D71: 3.575 | E71: 3.699 | F71: 0.077 | G71: 3.247 | H71: 0 | I71: 1.504 | J71: 60.155 | K71: 2.45 | L71: 280.898
A72: 2019/12/03 19:00:00 | B72: 0.351 | C72: 0.109 | D72: 4.303 | E72: 4.412 | F72: 0.226 | G72: 3.745 | H72: 0 | I72: 0.674 | J72: 61.613 | K72: 3.109 | L72: 282.929
A73: 2019/12/03 20:00:00 | B73: 0.389 | C73: 0.238 | D73: 3.948 | E73: 4.186 | F73: 0.196 | G73: 4.013 | H73: 0 | I73: -0.519 | J73: 64.573 | K73: 2.748 | L73: 286.706
A74: 2019/12/03 21:00:00 | B74: 0.384 | C74: 0.117 | D74: 4.771 | E74: 4.888 | F74: 0.134 | G74: 4.049 | H74: 0 | I74: -1.023 | J74: 65.629 | K74: 3.007 | L74: 285.189
A75: 2019/12/03 22:00:00 | B75: Z | C75: Z | D75: Z | E75: Z | F75: Z | G75: 3.835 | H75: 0 | I75: -1.43 | J75: 64.08 | K75: 2.906 | L75: 269.967
A76: 2019/12/03 23:00:00 | B76: 0.197 | C76: 0.07 | D76: 2.694 | E76: 2.765 | F76: 0.294 | G76: 3.411 | H76: 0 | I76: -1.292 | J76: 59.592 | K76: 2.597 | L76: 275.253
A77: 2019/12/04 00:00:00 | B77: 0.144 | C77: 0.05 | D77: 2.591 | E77: 2.641 | F77: 0.129 | G77: 2.697 | H77: 0 | I77: -1.369 | J77: 60.315 | K77: 2.013 | L77: 267.418
A78: 2019/12/04 01:00:00 | B78: 0.12 | C78: 0.063 | D78: 3.352 | E78: 3.416 | F78: 0.156 | G78: 3.481 | H78: 0 | I78: -3.269 | J78: 65.484 | K78: 0.875 | L78: 246.558
A79: 2019/12/04 02:00:00 | B79: 0.178 | C79: 2.569 | D79: 4.527 | E79: 7.096 | F79: 0.166 | G79: 3.842 | H79: 0 | I79: -3.5 | J79: 66.525 | K79: 0.324 | L79: 248.364
A80: 2019/12/04 03:00:00 | B80: 0.215 | C80: 1.792 | D80: 9.514 | E80: 11.306 | F80: 0.109 | G80: 3.105 | H80: 0 | I80: -2.687 | J80: 66.685 | K80: 0.717 | L80: 328.375
A81: 2019/12/04 04:00:00 | B81: 0.208 | C81: 0.181 | D81: 4.86 | E81: 5.041 | F81: 0.138 | G81: 2.699 | H81: 0 | I81: -2.127 | J81: 65.43 | K81: 0.998 | L81: 317.305
A82: 2019/12/04 05:00:00 | B82: 0.214 | C82: 0.147 | D82: 4.921 | E82: 5.069 | F82: 0.242 | G82: 2.505 | H82: 0 | I82: -1.683 | J82: 63.825 | K82: 1.674 | L82: 288.341
A83: 2019/12/04 06:00:00 | B83: 0.236 | C83: 0.129 | D83: 4.946 | E83: 5.076 | F83: 0.175 | G83: 2.381 | H83: 0 | I83: -2.229 | J83: 67.48 | K83: 1.891 | L83: 257.035
A84: 2019/12/04 07:00:00 | B84: 0.236 | C84: 0.106 | D84: 5.669 | E84: 5.777 | F84: 0.21 | G84: 2.479 | H84: 0 | I84: -2.323 | J84: 68.371 | K84: 0.321 | L84: 296.349
A85: 2019/12/04 08:00:00 | B85: 0.057 | C85: 0.528 | D85: 7.21 | E85: 7.739 | F85: 0.175 | G85: 2.71 | H85: 0 | I85: -2.86 | J85: 69.853 | K85: 0.714 | L85: 326.486
A86: 2019/12/04 09:00:00 | B86: 0.108 | C86: 3.294 | D86: 10.279 | E86: 13.574 | F86: 0.154 | G86: 2.958 | H86: 0 | I86: -3.463 | J86: 71.199 | K86: 0.538 | L86: 336.427
A87: 2019/12/04 10:00:00 | B87: 0.044 | C87: 0.442 | D87: 6.059 | E87: 6.502 | F87: 0.101 | G87: 3.169 | H87: 0 | I87: -3.585 | J87: 70.645 | K87: 0.263 | L87: 303.138
A88: 2019/12/04 11:00:00 | B88: 0.091 | C88: 1.137 | D88: 8.028 | E88: 9.166 | F88: 0.077 | G88: 3.046 | H88: 0 | I88: -3.256 | J88: 69.751 | K88: 0.59 | L88: 331.203
A89: 2019/12/04 12:00:00 | B89: 0.307 | C89: 3.016 | D89: 6.668 | E89: 9.685 | F89: 0.201 | G89: 2.621 | H89: 0 | I89: -2.816 | J89: 63.772 | K89: 1.693 | L89: 357.53
A90: 2019/12/04 13:00:00 | B90: 0.337 | C90: 0.937 | D90: 2.821 | E90: 3.759 | F90: 0.144 | G90: 2.219 | H90: 0 | I90: -2.81 | J90: 61.843 | K90: 1.959 | L90: 11.015
A91: 2019/12/04 14:00:00 | B91: 0.281 | C91: 0.974 | D91: 2.232 | E91: 3.208 | F91: -0.009 | G91: 2.227 | H91: 0 | I91: -2.937 | J91: 62.111 | K91: 2.284 | L91: 358.282
A92: 2019/12/04 15:00:00 | B92: 0.178 | C92: 0.633 | D92: 1.646 | E92: 2.279 | F92: 0.033 | G92: 2.231 | H92: 0 | I92: -3.415 | J92: 61.405 | K92: 2.389 | L92: 2.459
A93: 2019/12/04 16:00:00 | B93: 0.109 | C93: 0.38 | D93: 1.445 | E93: 1.825 | F93: -0.102 | G93: 2.329 | H93: 0 | I93: -3.896 | J93: 61.159 | K93: 2.445 | L93: 3.545
A94: 2019/12/04 17:00:00 | B94: 0.16 | C94: 0.716 | D94: 1.934 | E94: 2.651 | F94: -0.153 | G94: 2.507 | H94: 0 | I94: -4.622 | J94: 64.063 | K94: 2.001 | L94: 358.793
A95: 2019/12/04 18:00:00 | B95: 0.118 | C95: 3.953 | D95: 7.387 | E95: 11.341 | F95: -0.015 | G95: 2.999 | H95: 0 | I95: -5.309 | J95: 68.133 | K95: 1.406 | L95: 356.821
A96: 2019/12/04 19:00:00 | B96: 0.151 | C96: 0.42 | D96: 2.189 | E96: 2.61 | F96: -0.054 | G96: 3.071 | H96: 0 | I96: -5.898 | J96: 68.674 | K96: 1.53 | L96: 9.337
A97: 2019/12/04 20:00:00 | B97: 0.019 | C97: 5.202 | D97: 8.318 | E97: 13.522 | F97: 0.042 | G97: 3.069 | H97: 0 | I97: -6.096 | J97: 68.715 | K97: 1.592 | L97: 347.111
A98: 2019/12/04 21:00:00 | B98: Z | C98: Z | D98: Z | E98: Z | F98: Z | G98: 3.341 | H98: 0 | I98: -6.334 | J98: 70.056 | K98: 1.518 | L98: 343.908
A99: 2019/12/04 22:00:00 | B99: 0.18 | C99: 5.383 | D99: 6.724 | E99: 12.109 | F99: 0.212 | G99: 3.116 | H99: 0 | I99: -6.78 | J99: 70.515 | K99: 1.487 | L99: 339.871
A100: 2019/12/04 23:00:00 | B100: 0.089 | C100: 1.387 | D100: 3.981 | E100: 5.368 | F100: -0.136 | G100: 3.497 | H100: 0 | I100: -7.94 | J100: 70.923 | K100: 0.636 | L100: 331.358
A101: 2019/12/05 00:00:00 | B101: 0.129 | C101: 0.109 | D101: 2.019 | E101: 2.129 | F101: -0.202 | G101: 4.8 | H101: 0 | I101: -11.013 | J101: 73.942 | K101: 0.243 | L101: 305.592
A102: 2019/12/05 01:00:00 | B102: 0.048 | C102: 0.282 | D102: 2.032 | E102: 2.317 | F102: -0.311 | G102: 5.632 | H102: 0 | I102: -11.802 | J102: 73.005 | K102: 0.309 | L102: 304.596
A103: 2019/12/05 02:00:00 | B103: 0.108 | C103: 0.428 | D103: 3.781 | E103: 4.21 | F103: -0.301 | G103: 5.484 | H103: 0 | I103: -12.028 | J103: 72.934 | K103: 0.283 | L103: 323.341
A104: 2019/12/05 03:00:00 | B104: 0.149 | C104: 0.184 | D104: 3.761 | E104: 3.946 | F104: -0.466 | G104: 4.901 | H104: 0 | I104: -11.231 | J104: 75.479 | K104: 0.51 | L104: 351.672
A105: 2019/12/05 04:00:00 | B105: 0.091 | C105: 0.282 | D105: 3.812 | E105: 4.096 | F105: -0.464 | G105: 4.029 | H105: 0 | I105: -9.452 | J105: 73.952 | K105: 0.402 | L105: 305.118
A106: 2019/12/05 05:00:00 | B106: 0.149 | C106: 0.114 | D106: 2.055 | E106: 2.169 | F106: -0.554 | G106: 3.325 | H106: 0 | I106: -8.537 | J106: 72.115 | K106: 0.188 | L106: 320.933
A107: 2019/12/05 06:00:00 | B107: 0.253 | C107: 0.162 | D107: 1.399 | E107: 1.561 | F107: -0.534 | G107: 3.124 | H107: 0 | I107: -7.924 | J107: 69.303 | K107: 0.399 | L107: 239.236
A108: 2019/12/05 07:00:00 | B108: 0.208 | C108: 0.303 | D108: 1.975 | E108: 2.278 | F108: -0.674 | G108: 3 | H108: 0 | I108: -7.944 | J108: 70.056 | K108: 0.344 | L108: 344.824
A109: 2019/12/05 08:00:00 | B109: 0.186 | C109: 0.224 | D109: 2.236 | E109: 2.462 | F109: -0.777 | G109: 3.269 | H109: 0 | I109: -7.896 | J109: 71.008 | K109: 0.092 | L109: 167.703
A110: 2019/12/05 09:00:00 | B110: 0.144 | C110: 0.163 | D110: 2.621 | E110: 2.785 | F110: -0.76 | G110: 1.947 | H110: AF | I110: AF | J110: AF | K110: AF | L110: AF
A111: 2019/12/05 10:00:00 | B111: -0.09 | C111: 0.182 | D111: 0.163 | E111: 0.345 | F111: -0.692 | G111: 0 | H111: AF | I111: AF | J111: AF | K111: AF | L111: AF
A112: 2019/12/05 11:00:00 | B112: -0.074 | C112: 0.183 | D112: 0.16 | E112: 0.343 | F112: -0.752 | G112: 0 | H112: AF | I112: AF | J112: AF | K112: AF | L112: AF
A113: 2019/12/05 12:00:00 | B113: -0.057 | C113: 0.184 | D113: 0.156 | E113: 0.341 | F113: -0.813 | G113: 0 | H113: AF | I113: AF | J113: AF | K113: AF | L113: AF
A114: 2019/12/05 13:00:00 | B114: 2.893 | C114: -0.144 | D114: 0.519 | E114: 0.376 | F114: 1.711 | G114: 11.985 | H114: AF | I114: AF | J114: AF | K114: AF | L114: AF
A115: 2019/12/05 14:00:00 | B115: C | C115: C | D115: C | E115: C | F115: C | G115: 25.109 | H115: 0 | I115: -3.104 | J115: 68.696 | K115: 2.882 | L115: 194.707
A116: 2019/12/05 15:00:00 | B116: C | C116: C | D116: C | E116: C | F116: C | G116: 24.357 | H116: 0 | I116: -2.802 | J116: 68.775 | K116: 2.173 | L116: 209.4
A117: 2019/12/05 16:00:00 | B117: C | C117: C | D117: C | E117: C | F117: C | G117: 24.445 | H117: 0 | I117: -2.893 | J117: 67.473 | K117: 1.824 | L117: 201.086
A118: 2019/12/05 17:00:00 | B118: C | C118: C | D118: C | E118: C | F118: C | G118: 26.115 | H118: 0 | I118: -4.34 | J118: 69.45 | K118: 0.81 | L118: 172.674
A119: 2019/12/05 18:00:00 | B119: C | C119: C | D119: C | E119: C | F119: C | G119: 27.369 | H119: 0 | I119: -6.827 | J119: 72.488 | K119: 0.182 | L119: 206.33
A120: 2019/12/05 19:00:00 | B120: C | C120: C | D120: C | E120: C | F120: C | G120: 29.509 | H120: 0 | I120: -8.595 | J120: 76.617 | K120: 0.683 | L120: 179.509
A121: 2019/12/05 20:00:00 | B121: C | C121: C | D121: C | E121: C | F121: C | G121: 27.952 | H121: 0 | I121: -7.709 | J121: 73.974 | K121: 0.841 | L121: 179.767
A122: 2019/12/05 21:00:00 | B122: C | C122: C | D122: C | E122: C | F122: C | G122: 9.568 | H122: 0 | I122: -8.653 | J122: 74.888 | K122: 0.741 | L122: 162.931
A123: 2019/12/05 22:00:00 | B123: C | C123: C | D123: C | E123: C | F123: C | G123: 4.832 | H123: 0 | I123: -8.95 | J123: 76.162 | K123: 0.667 | L123: 150.652
A124: 2019/12/05 23:00:00 | B124: 0.486 | C124: 0.21 | D124: 4.031 | E124: 4.241 | F124: -1.224 | G124: 7.761 | H124: 0 | I124: -8.857 | J124: 76.612 | K124: 0.908 | L124: 246.623
A125: 2019/12/06 00:00:00 | B125: 0.41 | C125: 0.19 | D125: 4.054 | E125: 4.244 | F125: -1.213 | G125: 10.481 | H125: 0 | I125: -9.642 | J125: 79.756 | K125: 2.146 | L125: 243.915
A126: 2019/12/06 01:00:00 | B126: 0.278 | C126: 0.206 | D126: 2.965 | E126: 3.171 | F126: -1.174 | G126: 11.815 | H126: 0 | I126: -9.152 | J126: 82.241 | K126: 1.876 | L126: 243.402
A127: 2019/12/06 02:00:00 | B127: 0.237 | C127: 0.229 | D127: 3.293 | E127: 3.52 | F127: -1.078 | G127: 12.08 | H127: 0 | I127: -8.52 | J127: 81.715 | K127: 1.719 | L127: 247.977
A128: 2019/12/06 03:00:00 | B128: 0.213 | C128: 0.153 | D128: 3.113 | E128: 3.266 | F128: -1.07 | G128: 12.765 | H128: 0 | I128: -8.012 | J128: 80.724 | K128: 1.428 | L128: 233.349
A129: 2019/12/06 04:00:00 | B129: 0.206 | C129: 0.182 | D129: 3.243 | E129: 3.423 | F129: -1.059 | G129: 10.589 | H129: 0 | I129: -8.061 | J129: 79.091 | K129: 0.749 | L129: 193.18
A130: 2019/12/06 05:00:00 | B130: 0.178 | C130: 0.149 | D130: 4.617 | E130: 4.766 | F130: -1.032 | G130: 8.295 | H130: 0 | I130: -8.8 | J130: 78.909 | K130: 0.994 | L130: 195.742
A131: 2019/12/06 06:00:00 | B131: 0.17 | C131: 0.196 | D131: 4.726 | E131: 4.921 | F131: -0.855 | G131: 8.45 | H131: 0 | I131: -10.018 | J131: 76.752 | K131: 0.632 | L131: 238.818
A132: 2019/12/06 07:00:00 | B132: 0.257 | C132: 0.227 | D132: 3.8 | E132: 4.026 | F132: -0.922 | G132: 9.632 | H132: 0 | I132: -10.129 | J132: 79.381 | K132: 1.269 | L132: 264.661
A133: 2019/12/06 08:00:00 | B133: 0.195 | C133: 0.174 | D133: 5.202 | E133: 5.375 | F133: -0.813 | G133: 11.473 | H133: 0 | I133: -10.426 | J133: 78.4 | K133: 1.625 | L133: 255.803
A134: 2019/12/06 09:00:00 | B134: 0.177 | C134: 0.265 | D134: 5.425 | E134: 5.689 | F134: -0.785 | G134: 12.383 | H134: 0 | I134: -12.004 | J134: 76.881 | K134: 0.495 | L134: 173.599
A135: 2019/12/06 10:00:00 | B135: 0.161 | C135: 0.709 | D135: 7.543 | E135: 8.251 | F135: -0.679 | G135: 13.991 | H135: 0 | I135: -12.74 | J135: 79.617 | K135: 1.314 | L135: 183.492
A136: 2019/12/06 11:00:00 | B136: 0.223 | C136: 1.847 | D136: 6.697 | E136: 8.544 | F136: -0.653 | G136: 14.078 | H136: 0 | I136: -11.285 | J136: 78.275 | K136: 0.668 | L136: 149.65
A137: 2019/12/06 12:00:00 | B137: 0.151 | C137: 2.209 | D137: 5.234 | E137: 7.442 | F137: -0.592 | G137: 13.032 | H137: 0 | I137: -8.431 | J137: 76.733 | K137: 0.575 | L137: 184.433
A138: 2019/12/06 13:00:00 | B138: 0.434 | C138: 1.691 | D138: 4.364 | E138: 6.055 | F138: -0.53 | G138: 10.388 | H138: 0 | I138: -6.266 | J138: 71.546 | K138: 1.02 | L138: 203.639
A139: 2019/12/06 14:00:00 | B139: 0.671 | C139: 1.887 | D139: 5.007 | E139: 6.893 | F139: -0.358 | G139: 7.361 | H139: 0 | I139: -5.082 | J139: 67.703 | K139: 1.038 | L139: 185.06
A140: 2019/12/06 15:00:00 | B140: 1.049 | C140: 2.806 | D140: 7.834 | E140: 10.638 | F140: -0.253 | G140: 7.471 | H140: 0 | I140: -4.874 | J140: 67.859 | K140: 1.585 | L140: 152.288
A141: 2019/12/06 16:00:00 | B141: 0.414 | C141: 1.737 | D141: 6.976 | E141: 8.711 | F141: -0.334 | G141: 10.524 | H141: 0 | I141: -7.512 | J141: 74.589 | K141: 1.596 | L141: 142.468
A142: 2019/12/06 17:00:00 | B142: 0.084 | C142: 0.798 | D142: 6.021 | E142: 6.818 | F142: -0.197 | G142: 12.932 | H142: 0 | I142: -8.634 | J142: 77.763 | K142: 1.548 | L142: 145.696
A143: 2019/12/06 18:00:00 | B143: 0.096 | C143: 0.382 | D143: 6.849 | E143: 7.23 | F143: -0.035 | G143: 14.498 | H143: 0 | I143: -10.572 | J143: 78.464 | K143: 0.765 | L143: 147.34
A144: 2019/12/06 19:00:00 | B144: Z | C144: Z | D144: Z | E144: Z | F144: Z | G144: 15.816 | H144: 0 | I144: -11.319 | J144: 78.509 | K144: 0.571 | L144: 153.005
A145: 2019/12/06 20:00:00 | B145: 0.308 | C145: 0.427 | D145: 10.313 | E145: 10.738 | F145: 0.125 | G145: 18.4 | H145: 0 | I145: -11.4 | J145: 77.916 | K145: 0.645 | L145: 151.54
A146: 2019/12/06 21:00:00 | B146: 0.119 | C146: 0.591 | D146: 10.589 | E146: 11.178 | F146: -0.06 | G146: 18.853 | H146: 0 | I146: -10.278 | J146: 77.732 | K146: 0.798 | L146: 121.135
A147: 2019/12/06 22:00:00 | B147: 0.133 | C147: 0.318 | D147: 8.699 | E147: 9.015 | F147: -0.051 | G147: 17.761 | H147: 0 | I147: -9.878 | J147: 77.956 | K147: 1.188 | L147: 122.744
A148: 2019/12/06 23:00:00 | B148: 0.078 | C148: 0.475 | D148: 7.986 | E148: 8.459 | F148: -0.166 | G148: 17.232 | H148: 0 | I148: -10.56 | J148: 77.901 | K148: 0.937 | L148: 134.731
A149: 2019/12/07 00:00:00 | B149: 0.124 | C149: 0.427 | D149: 7.903 | E149: 8.328 | F149: -0.027 | G149: 18.045 | H149: 0 | I149: -12.123 | J149: 77.223 | K149: 0.493 | L149: 115.808
A150: 2019/12/07 01:00:00 | B150: 0.134 | C150: 0.33 | D150: 7.037 | E150: 7.363 | F150: -0.099 | G150: 18.806 | H150: 0 | I150: -12.365 | J150: 77.363 | K150: 0.73 | L150: 157.501
A151: 2019/12/07 02:00:00 | B151: 0.021 | C151: 0.398 | D151: 7.762 | E151: 8.157 | F151: 0.007 | G151: 17.893 | H151: 0 | I151: -12.012 | J151: 75.834 | K151: 0.336 | L151: 187.255
A152: 2019/12/07 03:00:00 | B152: 0.11 | C152: 0.15 | D152: 6.636 | E152: 6.784 | F152: -0.019 | G152: 16.646 | H152: 0 | I152: -11.05 | J152: 74.431 | K152: 0.578 | L152: 208.061
A153: 2019/12/07 04:00:00 | B153: 0.212 | C153: 0.367 | D153: 6.501 | E153: 6.864 | F153: -0.038 | G153: 16.299 | H153: 0 | I153: -10.742 | J153: 74.865 | K153: 0.137 | L153: 343.367
A154: 2019/12/07 05:00:00 | B154: 0.207 | C154: 0.878 | D154: 6.331 | E154: 7.205 | F154: 0.021 | G154: 15.482 | H154: 0 | I154: -9.856 | J154: 75.206 | K154: 0.701 | L154: 344.05
A155: 2019/12/07 06:00:00 | B155: 0.163 | C155: 0.748 | D155: 5.852 | E155: 6.595 | F155: -0.117 | G155: 15.023 | H155: 0 | I155: -9.869 | J155: 76.872 | K155: 1.452 | L155: 331.389
A156: 2019/12/07 07:00:00 | B156: 0.251 | C156: 2.338 | D156: 7.295 | E156: 9.629 | F156: 0.016 | G156: 14.347 | H156: 0 | I156: -9.013 | J156: 77.213 | K156: 1.294 | L156: 331.259
A157: 2019/12/07 08:00:00 | B157: 0.412 | C157: 1.021 | D157: 6.495 | E157: 7.513 | F157: 0.078 | G157: 14.072 | H157: 0 | I157: -8.61 | J157: 77.498 | K157: 1.383 | L157: 330.823
A158: 2019/12/07 09:00:00 | B158: 0.526 | C158: 7.276 | D158: 10.316 | E158: 17.589 | F158: 0.061 | G158: 13.522 | H158: 0 | I158: -7.761 | J158: 78.135 | K158: 2.045 | L158: 345.227
A159: 2019/12/07 10:00:00 | B159: 0.196 | C159: 3.169 | D159: 7.084 | E159: 10.251 | F159: 0.016 | G159: 12.089 | H159: 0 | I159: -6.915 | J159: 77.493 | K159: 2.488 | L159: 350.188
A160: 2019/12/07 11:00:00 | B160: 0.048 | C160: 0.169 | D160: 3.479 | E160: 3.643 | F160: -0.023 | G160: 6.296 | H160: 0.01 | I160: -7.067 | J160: 72.851 | K160: 3.536 | L160: 16.823
A161: 2019/12/07 12:00:00 | B161: 0.075 | C161: 0.134 | D161: 2.513 | E161: 2.644 | F161: -0.098 | G161: 2.931 | H161: 0 | I161: -8.114 | J161: 72.401 | K161: 3.584 | L161: 9.761
A162: 2019/12/07 13:00:00 | B162: -0.175 | C162: 0.214 | D162: 2.018 | E162: 2.229 | F162: -0.07 | G162: 1.858 | H162: 0 | I162: -8.811 | J162: 71.051 | K162: 3.668 | L162: 5.046
A163: 2019/12/07 14:00:00 | B163: -0.063 | C163: 0.217 | D163: 1.738 | E163: 1.951 | F163: -0.104 | G163: 1.592 | H163: 0 | I163: -9.442 | J163: 67.726 | K163: 3.546 | L163: 4.344
A164: 2019/12/07 15:00:00 | B164: -0.103 | C164: 0.243 | D164: 1.831 | E164: 2.07 | F164: -0.086 | G164: 1.715 | H164: 0 | I164: -9.981 | J164: 65.084 | K164: 3.881 | L164: 9.122
A165: 2019/12/07 16:00:00 | B165: -0.059 | C165: 0.529 | D165: 2.46 | E165: 2.985 | F165: -0.052 | G165: 1.882 | H165: 0 | I165: -10.721 | J165: 63.973 | K165: 3.434 | L165: 3.154
A166: 2019/12/07 17:00:00 | B166: -0.041 | C166: 0.206 | D166: 3.137 | E166: 3.339 | F166: -0.035 | G166: 2.047 | H166: 0 | I166: -11.509 | J166: 63.741 | K166: 2.773 | L166: 6.153
A167: 2019/12/07 18:00:00 | B167: Z | C167: Z | D167: Z | E167: Z | F167: Z | G167: 2.164 | H167: 0 | I167: -12.356 | J167: 63.732 | K167: 2.523 | L167: 2.343
A168: 2019/12/07 19:00:00 | B168: 0.147 | C168: 0.185 | D168: 3.165 | E168: 3.346 | F168: 0.099 | G168: 2.275 | H168: 0 | I168: -12.985 | J168: 65.893 | K168: 2.901 | L168: 8.867
A169: 2019/12/07 20:00:00 | B169: -0.098 | C169: -0.023 | D169: 1.718 | E169: 1.691 | F169: -0.115 | G169: 1.928 | H169: 0 | I169: -14.163 | J169: 64.493 | K169: 3.11 | L169: 16.968
A170: 2019/12/07 21:00:00 | B170: -0.064 | C170: 0.001 | D170: 0.973 | E170: 0.971 | F170: -0.092 | G170: 1.523 | H170: 0 | I170: -15.441 | J170: 64.302 | K170: 2.381 | L170: 17.885
A171: 2019/12/07 22:00:00 | B171: -0.07 | C171: 0.01 | D171: 0.866 | E171: 0.873 | F171: -0.121 | G171: 1.484 | H171: 0 | I171: -16.391 | J171: 65.203 | K171: 1.659 | L171: 10.944
A172: 2019/12/07 23:00:00 | B172: -0.171 | C172: 0.069 | D172: 1.165 | E172: 1.232 | F172: -0.264 | G172: 1.607 | H172: 0 | I172: -17.263 | J172: 66.645 | K172: 1.174 | L172: 9.85
A173: 2019/12/08 00:00:00 | B173: -0.103 | C173: -0.006 | D173: 1.717 | E173: 1.708 | F173: -0.122 | G173: 1.75 | H173: 0 | I173: -18.781 | J173: 68.748 | K173: 1.075 | L173: 351.51
A174: 2019/12/08 01:00:00 | B174: -0.041 | C174: 1.081 | D174: 7.254 | E174: 8.334 | F174: -0.028 | G174: 2.815 | H174: 0 | I174: -20.16 | J174: 69.79 | K174: 1.215 | L174: 346.612
A175: 2019/12/08 02:00:00 | B175: -0.117 | C175: 0.019 | D175: 1.357 | E175: 1.375 | F175: -0.074 | G175: 8.869 | H175: 0 | I175: -21.037 | J175: 66.374 | K175: 1.444 | L175: 1.014
A176: 2019/12/08 03:00:00 | B176: -0.013 | C176: -0.048 | D176: 1.095 | E176: 1.045 | F176: -0.108 | G176: 7.942 | H176: 0 | I176: -21.458 | J176: 67.234 | K176: 0.803 | L176: 15.113
A177: 2019/12/08 04:00:00 | B177: -0.093 | C177: 0.414 | D177: 5.108 | E177: 5.522 | F177: -0.089 | G177: 7.948 | H177: 0 | I177: -22.703 | J177: 68.128 | K177: 0.624 | L177: 328.179
A178: 2019/12/08 05:00:00 | B178: 0.062 | C178: 0.342 | D178: 6.066 | E178: 6.407 | F178: -0.062 | G178: 7.374 | H178: 0 | I178: -23.643 | J178: 67.663 | K178: 0.674 | L178: 318.852
A179: 2019/12/08 06:00:00 | B179: -0.004 | C179: 2.548 | D179: 8.168 | E179: 10.715 | F179: -0.125 | G179: 7.023 | H179: 0 | I179: -23.756 | J179: 70.271 | K179: 0.918 | L179: 323.54
A180: 2019/12/08 07:00:00 | B180: -0.006 | C180: 0.834 | D180: 4.633 | E180: 5.467 | F180: -0.14 | G180: 6.22 | H180: 0 | I180: -24.532 | J180: 68.972 | K180: 0.538 | L180: 319.98
A181: 2019/12/08 08:00:00 | B181: 0.083 | C181: 0.022 | D181: 4.85 | E181: 4.871 | F181: -0.018 | G181: 6.099 | H181: 0 | I181: -24.991 | J181: 64.491 | K181: 0.361 | L181: 292.084
A182: 2019/12/08 09:00:00 | B182: 0.003 | C182: 0.131 | D182: 7.517 | E182: 7.648 | F182: -0.032 | G182: 5.622 | H182: 0 | I182: -25.59 | J182: 63.889 | K182: 0.35 | L182: 267.516
A183: 2019/12/08 10:00:00 | B183: 0.063 | C183: 0.195 | D183: 5.789 | E183: 5.986 | F183: -0.137 | G183: 7.15 | H183: 0 | I183: -25.317 | J183: 66.189 | K183: 0.787 | L183: 165.248
A184: 2019/12/08 11:00:00 | B184: 0.171 | C184: 0.969 | D184: 3.78 | E184: 4.75 | F184: -0.072 | G184: 4.091 | H184: 0 | I184: -22.585 | J184: 68.528 | K184: 1.019 | L184: 146.405
A185: 2019/12/08 12:00:00 | B185: 0.311 | C185: 0.609 | D185: 1.745 | E185: 2.355 | F185: -0.061 | G185: 1.446 | H185: 0 | I185: -21.067 | J185: 68.039 | K185: 1.957 | L185: 164.691
A186: 2019/12/08 13:00:00 | B186: 0.242 | C186: 1.779 | D186: 2.282 | E186: 4.061 | F186: -0.146 | G186: 1.078 | H186: 0 | I186: -19.426 | J186: 68.454 | K186: 2.193 | L186: 159.799
A187: 2019/12/08 14:00:00 | B187: 0.417 | C187: 1.257 | D187: 3.083 | E187: 4.341 | F187: -0.05 | G187: 1.234 | H187: 0 | I187: -17.86 | J187: 65.54 | K187: 1.926 | L187: 170.689
A188: 2019/12/08 15:00:00 | B188: 0.331 | C188: 0.959 | D188: 3.136 | E188: 4.097 | F188: -0.008 | G188: 1.384 | H188: 0 | I188: -16.701 | J188: 63.578 | K188: 2.444 | L188: 169.432
A189: 2019/12/08 16:00:00 | B189: 0.299 | C189: 0.418 | D189: 2.244 | E189: 2.662 | F189: -0.063 | G189: 1.283 | H189: 0 | I189: -15.812 | J189: 62.258 | K189: 2.619 | L189: 163.153
A190: 2019/12/08 17:00:00 | B190: Z | C190: Z | D190: Z | E190: Z | F190: Z | G190: 1.324 | H190: 0 | I190: -15.358 | J190: 62.948 | K190: 1.555 | L190: 142.535
A191: 2019/12/08 18:00:00 | B191: 0.317 | C191: 0.047 | D191: 2.63 | E191: 2.679 | F191: 0.562 | G191: 1.88 | H191: 0 | I191: -15.388 | J191: 65.433 | K191: 2.229 | L191: 142.293
A192: 2019/12/08 19:00:00 | B192: 0.139 | C192: 0.033 | D192: 2.232 | E192: 2.267 | F192: -0.053 | G192: 1.934 | H192: 0 | I192: -14.848 | J192: 64.988 | K192: 2.414 | L192: 146.282
A193: 2019/12/08 20:00:00 | B193: 0.149 | C193: 0.037 | D193: 2.427 | E193: 2.466 | F193: -0.036 | G193: 1.699 | H193: 0 | I193: -14.166 | J193: 66.215 | K193: 2.089 | L193: 152.63
A194: 2019/12/08 21:00:00 | B194: 0.214 | C194: 0.093 | D194: 2.932 | E194: 3.028 | F194: -0.048 | G194: 1.707 | H194: 0 | I194: -12.78 | J194: 66.71 | K194: 1.668 | L194: 172.732
A195: 2019/12/08 22:00:00 | B195: 0.955 | C195: 0.001 | D195: 2.841 | E195: 2.843 | F195: -0.005 | G195: 1.46 | H195: 0 | I195: -10.613 | J195: 65.596 | K195: 1.914 | L195: 221.265
A196: 2019/12/08 23:00:00 | B196: 1.283 | C196: 0.007 | D196: 3.469 | E196: 3.478 | F196: -0.101 | G196: 1.905 | H196: 0 | I196: -11.04 | J196: 67.306 | K196: 1.607 | L196: 257.129
A197: 2019/12/09 00:00:00 | B197: 0.829 | C197: 0.076 | D197: 5.372 | E197: 5.45 | F197: -0.074 | G197: 2.857 | H197: 0 | I197: -11.755 | J197: 69.62 | K197: 1.289 | L197: 288.349
A198: 2019/12/09 01:00:00 | B198: 0.434 | C198: -0.01 | D198: 5.488 | E198: 5.48 | F198: -0.088 | G198: 3.943 | H198: 0 | I198: -12.823 | J198: 72.424 | K198: 2.589 | L198: 288.01
A199: 2019/12/09 02:00:00 | B199: 0.422 | C199: 0.072 | D199: 7.262 | E199: 7.336 | F199: -0.013 | G199: 5.134 | H199: 0 | I199: -11.587 | J199: 72.318 | K199: 2.652 | L199: 297.031
A200: 2019/12/09 03:00:00 | B200: 0.267 | C200: 0.045 | D200: 6.801 | E200: 6.847 | F200: -0.088 | G200: 6.03 | H200: 0 | I200: -10.679 | J200: 71.725 | K200: 3.316 | L200: 315
A201: 2019/12/09 04:00:00 | B201: 0.182 | C201: 0.013 | D201: 4.318 | E201: 4.333 | F201: -0.089 | G201: 5.225 | H201: 0 | I201: -10.369 | J201: 71.79 | K201: 3.999 | L201: 318.051
... 556 more rows

Sheet Meadow Lake City
A1: =Kerrobert!A1 -> Group: Global WYAMZ - Monthly Monthly: 12/2019 Type: AVG 1 Hr.
A3: Date & Time | B3: Meadow Lake City | C3: Meadow Lake City | D3: Meadow Lake City | E3: Meadow Lake City | F3: Meadow Lake City | G3: Meadow Lake City | H3: Meadow Lake City | I3: Meadow Lake City | J3: Meadow Lake City | K3: Meadow Lake City
B4: NO | C4: NO2 | D4: NOX | E4: O3 | F4: PM2.5 | G4: ET | H4: RH | I4: PR | J4: WS | K4: WD
B5: Ave | C5: Ave | D5: Ave | E5: Ave | F5: Ave | G5: Ave | H5: Ave | I5: Total | J5: Ave | K5: Ave
A6: 2019/12/01 01:00:00 | B6: Z | C6: Z | D6: Z | E6: Z | F6: 13.938 | G6: 0 | H6: -8.494 | I6: 0.742 | J6: 194.255 | K6: 72.664
A7: 2019/12/01 02:00:00 | B7: 0.16 | C7: 1.185 | D7: 1.343 | E7: 23.265 | F7: 11.741 | G7: 0 | H7: -8.327 | I7: 0.929 | J7: 184.834 | K7: 72.445
A8: 2019/12/01 03:00:00 | B8: 0.223 | C8: 1.162 | D8: 1.382 | E8: 22.688 | F8: 7.658 | G8: 0 | H8: -8.035 | I8: 0.956 | J8: 178.719 | K8: 72.676
A9: 2019/12/01 04:00:00 | B9: 0.102 | C9: 1.119 | D9: 1.218 | E9: 22.583 | F9: 6.076 | G9: 0 | H9: -7.561 | I9: 0.957 | J9: 180.535 | K9: 72.622
A10: 2019/12/01 05:00:00 | B10: 0.171 | C10: 1.205 | D10: 1.373 | E10: 22.906 | F10: 6.001 | G10: 0 | H10: -7.274 | I10: 0.723 | J10: 189.397 | K10: 72.098
A11: 2019/12/01 06:00:00 | B11: 0.198 | C11: 1.267 | D11: 1.462 | E11: 23.049 | F11: 5.641 | G11: 0 | H11: -7.019 | I11: 0.741 | J11: 184.285 | K11: 71.506
A12: 2019/12/01 07:00:00 | B12: 0.304 | C12: 1.459 | D12: 1.761 | E12: 22.588 | F12: 6.059 | G12: 0 | H12: -6.984 | I12: 0.565 | J12: 205.102 | K12: 71.104
A13: 2019/12/01 08:00:00 | B13: 0.322 | C13: 1.441 | D13: 1.759 | E13: 22.856 | F13: 14.963 | G13: 0 | H13: -7.089 | I13: 0.434 | J13: 211.932 | K13: 71.6
A14: 2019/12/01 09:00:00 | B14: 0.44 | C14: 1.873 | D14: 2.31 | E14: 21.282 | F14: 10.455 | G14: 0 | H14: -7.238 | I14: 0.323 | J14: 188.451 | K14: 71.189
A15: 2019/12/01 10:00:00 | B15: 0.2 | C15: 2.136 | D15: 2.333 | E15: 17.882 | F15: 6.866 | G15: 0 | H15: -7.877 | I15: 0.388 | J15: 163.295 | K15: 71.928
A16: 2019/12/01 11:00:00 | B16: 0.322 | C16: 1.525 | D16: 1.844 | E16: 18.885 | F16: 5.866 | G16: 0 | H16: -7.471 | I16: 0.873 | J16: 157.35 | K16: 71.906
A17: 2019/12/01 12:00:00 | B17: 0.329 | C17: 1.195 | D17: 1.521 | E17: 20.398 | F17: 3.871 | G17: 0 | H17: -6.306 | I17: 1.089 | J17: 146.679 | K17: 67.487
A18: 2019/12/01 13:00:00 | B18: 0.465 | C18: 1.225 | D18: 1.687 | E18: 20.983 | F18: 2.879 | G18: 0 | H18: -4.968 | I18: 0.379 | J18: 204.187 | K18: 62.735
A19: 2019/12/01 14:00:00 | B19: 0.382 | C19: 1.301 | D19: 1.681 | E19: 21.416 | F19: 2.195 | G19: 0 | H19: -3.934 | I19: 0.398 | J19: 191.099 | K19: 59.207
A20: 2019/12/01 15:00:00 | B20: 0.478 | C20: 1.584 | D20: 2.059 | E20: 21.323 | F20: 2.057 | G20: 0 | H20: -3.681 | I20: 0.472 | J20: 240.403 | K20: 58.44
A21: 2019/12/01 16:00:00 | B21: 0.824 | C21: 2.668 | D21: 3.489 | E21: 20.786 | F21: 4.628 | G21: 0 | H21: -4.896 | I21: 1.022 | J21: 279.736 | K21: 62.441
A22: 2019/12/01 17:00:00 | B22: 0.931 | C22: 4.512 | D22: 5.441 | E22: 19.341 | F22: 8.288 | G22: 0 | H22: -5.712 | I22: 0.911 | J22: 268.892 | K22: 63.722
A23: 2019/12/01 18:00:00 | B23: 1.233 | C23: 6.941 | D23: 8.17 | E23: 15.841 | F23: 19.697 | G23: 0 | H23: -7.256 | I23: 0.348 | J23: 246.917 | K23: 67.315
A24: 2019/12/01 19:00:00 | B24: 1.073 | C24: 6.638 | D24: 7.706 | E24: 14.567 | F24: 10.861 | G24: 0 | H24: -8.303 | I24: 0.368 | J24: 258.303 | K24: 69.104
A25: 2019/12/01 20:00:00 | B25: 1.586 | C25: 7.046 | D25: 8.628 | E25: 13.083 | F25: 10.291 | G25: 0 | H25: -9.293 | I25: 0.45 | J25: 260.195 | K25: 70.894
A26: 2019/12/01 21:00:00 | B26: 1.85 | C26: 9.83 | D26: 11.676 | E26: 9.444 | F26: 13.096 | G26: 0 | H26: -10.024 | I26: 0.502 | J26: 270.786 | K26: 71.258
A27: 2019/12/01 22:00:00 | B27: 1.27 | C27: 7.326 | D27: 8.591 | E27: 11.595 | F27: 11.655 | G27: 0 | H27: -10.679 | I27: 0.499 | J27: 265.262 | K27: 71.862
A28: 2019/12/01 23:00:00 | B28: 1.855 | C28: 10.411 | D28: 12.261 | E28: 7.349 | F28: 23.681 | G28: 0 | H28: -10.973 | I28: 0.109 | J28: 145.104 | K28: 71.173
A29: 2019/12/02 00:00:00 | B29: Z | C29: Z | D29: Z | E29: Z | F29: 26.394 | G29: 0 | H29: -11.634 | I29: 0.133 | J29: 223.752 | K29: 70.624
A30: 2019/12/02 01:00:00 | B30: 1.711 | C30: 8.565 | D30: 10.271 | E30: 9.898 | F30: 14.704 | G30: 0 | H30: -11.145 | I30: 0.498 | J30: 255.982 | K30: 71.382
A31: 2019/12/02 02:00:00 | B31: 0.851 | C31: 5.047 | D31: 5.893 | E31: 14.677 | F31: 14.953 | G31: 0 | H31: -10.521 | I31: 0.5 | J31: 262.886 | K31: 70.813
A32: 2019/12/02 03:00:00 | B32: 0.941 | C32: 6.108 | D32: 7.045 | E32: 14.262 | F32: 13.984 | G32: 0 | H32: -10.542 | I32: 0.265 | J32: 244.396 | K32: 69.166
A33: 2019/12/02 04:00:00 | B33: 1.478 | C33: 9.518 | D33: 10.992 | E33: 11.228 | F33: 8.552 | G33: 0 | H33: -10.598 | I33: 0.372 | J33: 266.727 | K33: 66.544
A34: 2019/12/02 05:00:00 | B34: 1.14 | C34: 8.132 | D34: 9.269 | E34: 15.221 | F34: 7.67 | G34: 0 | H34: -9.85 | I34: 0.446 | J34: 257.18 | K34: 63.195
A35: 2019/12/02 06:00:00 | B35: 0.948 | C35: 8.104 | D35: 9.048 | E35: 16.632 | F35: 6.441 | G35: 0 | H35: -7.742 | I35: 1.043 | J35: 273.664 | K35: 60.825
A36: 2019/12/02 07:00:00 | B36: 0.642 | C36: 7.202 | D36: 7.841 | E36: 18.842 | F36: 5.747 | G36: 0 | H36: -6.515 | I36: 0.973 | J36: 271.777 | K36: 58.924
A37: 2019/12/02 08:00:00 | B37: 0.624 | C37: 6.417 | D37: 7.038 | E37: 21.807 | F37: 4.014 | G37: 0 | H37: -5.023 | I37: 1.405 | J37: 269.114 | K37: 56.632
A38: 2019/12/02 09:00:00 | B38: 0.695 | C38: 6.127 | D38: 6.82 | E38: 22.299 | F38: 3.393 | G38: 0 | H38: -4.865 | I38: 1.202 | J38: 260.687 | K38: 56.946
A39: 2019/12/02 10:00:00 | B39: 1.17 | C39: 6.554 | D39: 7.722 | E39: 22.42 | F39: 3.118 | G39: 0 | H39: -4.973 | I39: 1.264 | J39: 261.579 | K39: 57.39
A40: 2019/12/02 11:00:00 | B40: 1.169 | C40: 5.468 | D40: 6.635 | E40: 24.369 | F40: 2.488 | G40: 0 | H40: -3.826 | I40: 1.785 | J40: 269.702 | K40: 55.89
A41: 2019/12/02 12:00:00 | B41: 0.852 | C41: 3.995 | D41: 4.846 | E41: 26.436 | F41: 1.915 | G41: 0 | H41: -2.764 | I41: 1.976 | J41: 266.019 | K41: 54.414
A42: 2019/12/02 13:00:00 | B42: 1.199 | C42: 3.795 | D42: 4.993 | E42: 27.216 | F42: 1.907 | G42: 0 | H42: -1.938 | I42: 1.715 | J42: 266.598 | K42: 52.349
A43: 2019/12/02 14:00:00 | B43: 0.976 | C43: 3.75 | D43: 4.724 | E43: 27.386 | F43: 1.75 | G43: 0 | H43: -1.262 | I43: 1.203 | J43: 264.887 | K43: 51.585
A44: 2019/12/02 15:00:00 | B44: 1.253 | C44: 3.768 | D44: 5.019 | E44: 27.885 | F44: 1.229 | G44: 0 | H44: -0.176 | I44: 0.95 | J44: 259.805 | K44: 48.139
A45: 2019/12/02 16:00:00 | B45: 0.899 | C45: 3.67 | D45: 4.567 | E45: 28.343 | F45: 1.292 | G45: 0 | H45: -0.194 | I45: 1.195 | J45: 270.081 | K45: 48.579
A46: 2019/12/02 17:00:00 | B46: 0.824 | C46: 4.855 | D46: 5.679 | E46: 26.662 | F46: 2.061 | G46: 0 | H46: -0.911 | I46: 0.959 | J46: 263.505 | K46: 50.689
A47: 2019/12/02 18:00:00 | B47: 0.665 | C47: 5.769 | D47: 6.435 | E47: 25.7 | F47: 2.469 | G47: 0 | H47: -0.835 | I47: 0.803 | J47: 267.438 | K47: 52.715
A48: 2019/12/02 19:00:00 | B48: 0.672 | C48: 5.326 | D48: 5.998 | E48: 25.76 | F48: 2.44 | G48: 0 | H48: -0.86 | I48: 0.971 | J48: 259.171 | K48: 55.619
A49: 2019/12/02 20:00:00 | B49: 0.677 | C49: 5.088 | D49: 5.766 | E49: 25.398 | F49: 2.367 | G49: 0 | H49: -1.037 | I49: 0.795 | J49: 258.319 | K49: 56.654
A50: 2019/12/02 21:00:00 | B50: 0.606 | C50: 5.293 | D50: 5.9 | E50: 24.567 | F50: 4.593 | G50: 0 | H50: -2.246 | I50: 0.614 | J50: 266.863 | K50: 57.676
A51: 2019/12/02 22:00:00 | B51: 0.652 | C51: 4.611 | D51: 5.264 | E51: 25.688 | F51: 4.475 | G51: 0 | H51: -2.095 | I51: 0.918 | J51: 250.315 | K51: 57.328
A52: 2019/12/02 23:00:00 | B52: Z | C52: Z | D52: Z | E52: Z | F52: 4.596 | G52: 0 | H52: -1.362 | I52: 0.865 | J52: 253.915 | K52: 56.23
A53: 2019/12/03 00:00:00 | B53: 0.639 | C53: 4.55 | D53: 5.19 | E53: 26.641 | F53: 3.484 | G53: 0 | H53: -0.217 | I53: 1.051 | J53: 251.968 | K53: 54.833
A54: 2019/12/03 01:00:00 | B54: 0.455 | C54: 4.037 | D54: 4.494 | E54: 27.191 | F54: 2.299 | G54: 0 | H54: 0.588 | I54: 1.026 | J54: 258.358 | K54: 52.952
A55: 2019/12/03 02:00:00 | B55: 0.435 | C55: 3.855 | D55: 4.292 | E55: 27.689 | F55: 1.173 | G55: 0 | H55: 1.209 | I55: 1.251 | J55: 258.43 | K55: 52.191
A56: 2019/12/03 03:00:00 | B56: 0.282 | C56: 3.894 | D56: 4.175 | E56: 27.465 | F56: 1.271 | G56: 0 | H56: 0.997 | I56: 1.047 | J56: 248.321 | K56: 53.684
A57: 2019/12/03 04:00:00 | B57: 0.455 | C57: 3.618 | D57: 4.074 | E57: 27.446 | F57: 1.53 | G57: 0 | H57: 0.188 | I57: 0.999 | J57: 259.531 | K57: 56.572
A58: 2019/12/03 05:00:00 | B58: 0.674 | C58: 3.567 | D58: 4.241 | E58: 27.533 | F58: 1.734 | G58: 0 | H58: -0.145 | I58: 1.039 | J58: 257.066 | K58: 58.731
A59: 2019/12/03 06:00:00 | B59: 0.475 | C59: 3.163 | D59: 3.638 | E59: 29.163 | F59: 1.699 | G59: 0 | H59: 0.104 | I59: 1.303 | J59: 257.326 | K59: 58.778
A60: 2019/12/03 07:00:00 | B60: 0.515 | C60: 3.85 | D60: 4.365 | E60: 28.663 | F60: 1.97 | G60: 0 | H60: -0.142 | I60: 1.237 | J60: 256.377 | K60: 60.642
A61: 2019/12/03 08:00:00 | B61: 0.819 | C61: 4.742 | D61: 5.562 | E61: 28.709 | F61: 2.363 | G61: 0 | H61: -0.564 | I61: 0.966 | J61: 256.407 | K61: 62.977
A62: 2019/12/03 09:00:00 | B62: 0.9 | C62: 5.562 | D62: 6.461 | E62: 27.795 | F62: 2.612 | G62: 0 | H62: -1.271 | I62: 0.983 | J62: 259.846 | K62: 66.383
A63: 2019/12/03 10:00:00 | B63: 0.78 | C63: 4.237 | D63: 5.016 | E63: 28.746 | F63: 2.079 | G63: 0 | H63: -0.809 | I63: 1.485 | J63: 258.802 | K63: 65.911
A64: 2019/12/03 11:00:00 | B64: 0.677 | C64: 2.822 | D64: 3.5 | E64: 30.347 | F64: 1.335 | G64: 0 | H64: 0.396 | I64: 1.669 | J64: 259.854 | K64: 62.93
A65: 2019/12/03 12:00:00 | B65: 0.987 | C65: 2.725 | D65: 3.711 | E65: 30.679 | F65: 0.913 | G65: 0 | H65: 1.765 | I65: 1.382 | J65: 260.966 | K65: 60.472
A66: 2019/12/03 13:00:00 | B66: 0.657 | C66: 1.808 | D66: 2.463 | E66: 31.815 | F66: 0.907 | G66: 0 | H66: 3.204 | I66: 1.579 | J66: 267.058 | K66: 58.177
A67: 2019/12/03 14:00:00 | B67: 0.616 | C67: 1.899 | D67: 2.515 | E67: 32.424 | F67: 1.02 | G67: 0 | H67: 4.551 | I67: 2.022 | J67: 272.31 | K67: 54.552
A68: 2019/12/03 15:00:00 | B68: 0.788 | C68: 2.16 | D68: 2.948 | E68: 32.207 | F68: 1.069 | G68: 0 | H68: 4.767 | I68: 2.723 | J68: 280.069 | K68: 52.304
A69: 2019/12/03 16:00:00 | B69: 0.463 | C69: 2.254 | D69: 2.716 | E69: 31.69 | F69: 1.327 | G69: 0 | H69: 4.083 | I69: 2.113 | J69: 275.465 | K69: 53.425
A70: 2019/12/03 17:00:00 | B70: 0.324 | C70: 2.251 | D70: 2.574 | E70: 31.122 | F70: 1.985 | G70: 0 | H70: 3.286 | I70: 1.743 | J70: 265.967 | K70: 55.031
A71: 2019/12/03 18:00:00 | B71: 0.473 | C71: 2.925 | D71: 3.396 | E71: 30.006 | F71: 3.477 | G71: 0 | H71: 2.127 | I71: 1.137 | J71: 264.963 | K71: 56.863
A72: 2019/12/03 19:00:00 | B72: 0.439 | C72: 4.715 | D72: 5.152 | E72: 28.187 | F72: 6.754 | G72: 0 | H72: 0.889 | I72: 0.957 | J72: 261.204 | K72: 59.015
A73: 2019/12/03 20:00:00 | B73: 0.438 | C73: 3.562 | D73: 3.998 | E73: 28.446 | F73: 4.266 | G73: 0 | H73: 0.042 | I73: 0.872 | J73: 259.788 | K73: 59.887
A74: 2019/12/03 21:00:00 | B74: 0.546 | C74: 3.015 | D74: 3.558 | E74: 29.482 | F74: 5.458 | G74: 0 | H74: -0.166 | I74: 1.556 | J74: 273.085 | K74: 58.942
A75: 2019/12/03 22:00:00 | B75: Z | C75: Z | D75: Z | E75: Z | F75: 3.541 | G75: 0 | H75: -0.039 | I75: 1.665 | J75: 277.895 | K75: 56.882
A76: 2019/12/03 23:00:00 | B76: 0.62 | C76: 4.402 | D76: 5.019 | E76: 27.565 | F76: 20.354 | G76: 0 | H76: -1.638 | I76: 0.403 | J76: 263.897 | K76: 60.819
A77: 2019/12/04 00:00:00 | B77: 0.54 | C77: 2.935 | D77: 3.473 | E77: 28.1 | F77: 16.222 | G77: 0 | H77: -2.969 | I77: 0.433 | J77: 255.589 | K77: 63.203
A78: 2019/12/04 01:00:00 | B78: 0.429 | C78: 3.187 | D78: 3.615 | E78: 27.972 | F78: 3.456 | G78: 0 | H78: -3.181 | I78: 0.572 | J78: 264.309 | K78: 62.016
A79: 2019/12/04 02:00:00 | B79: 0.471 | C79: 4.029 | D79: 4.498 | E79: 26.958 | F79: 3.591 | G79: 0 | H79: -3.806 | I79: 0.433 | J79: 258.782 | K79: 62.754
A80: 2019/12/04 03:00:00 | B80: 0.433 | C80: 3.784 | D80: 4.215 | E80: 27.413 | F80: 2.602 | G80: 0 | H80: -3.684 | I80: 0.435 | J80: 260.344 | K80: 62.715
A81: 2019/12/04 04:00:00 | B81: 0.375 | C81: 2.927 | D81: 3.3 | E81: 28.538 | F81: 1.907 | G81: 0 | H81: -3.195 | I81: 0.753 | J81: 253.528 | K81: 62.236
A82: 2019/12/04 05:00:00 | B82: 0.473 | C82: 3.312 | D82: 3.784 | E82: 27.82 | F82: 1.832 | G82: 0 | H82: -3.323 | I82: 0.743 | J82: 257.597 | K82: 62.178
A83: 2019/12/04 06:00:00 | B83: 0.606 | C83: 4.068 | D83: 4.672 | E83: 26.725 | F83: 1.935 | G83: 0 | H83: -3.721 | I83: 0.651 | J83: 256.66 | K83: 62.359
A84: 2019/12/04 07:00:00 | B84: 0.714 | C84: 5.818 | D84: 6.531 | E84: 24.743 | F84: 2.704 | G84: 0 | H84: -4.196 | I84: 0.76 | J84: 266.55 | K84: 62.874
A85: 2019/12/04 08:00:00 | B85: 0.533 | C85: 5.764 | D85: 6.296 | E85: 25.204 | F85: 2.426 | G85: 0 | H85: -3.863 | I85: 1.299 | J85: 279.156 | K85: 61.939
A86: 2019/12/04 09:00:00 | B86: 0.841 | C86: 7.18 | D86: 8.019 | E86: 24.159 | F86: 2.215 | G86: 0 | H86: -3.847 | I86: 1.204 | J86: 296.645 | K86: 62.434
A87: 2019/12/04 10:00:00 | B87: 0.772 | C87: 4.119 | D87: 4.89 | E87: 25.35 | F87: 2.277 | G87: 0 | H87: -4.603 | I87: 0.982 | J87: 306.731 | K87: 65.553
A88: 2019/12/04 11:00:00 | B88: 1.159 | C88: 3.487 | D88: 4.644 | E88: 24.048 | F88: 2.18 | G88: 0 | H88: -5.276 | I88: 1.039 | J88: 313.894 | K88: 69.002
A89: 2019/12/04 12:00:00 | B89: 3.666 | C89: 5.603 | D89: 9.268 | E89: 23.345 | F89: 2.291 | G89: 0 | H89: -5.207 | I89: 1.148 | J89: 321.841 | K89: 68.308
A90: 2019/12/04 13:00:00 | B90: 0.978 | C90: 1.506 | D90: 2.484 | E90: 24.412 | F90: 2.135 | G90: 0 | H90: -5.072 | I90: 0.732 | J90: 18.839 | K90: 66.119
A91: 2019/12/04 14:00:00 | B91: 2.128 | C91: 2.357 | D91: 4.484 | E91: 21.961 | F91: 3.513 | G91: 0 | H91: -5.555 | I91: 0.818 | J91: 21.77 | K91: 63.427
A92: 2019/12/04 15:00:00 | B92: 1.315 | C92: 2.385 | D92: 3.699 | E92: 21.92 | F92: 6.707 | G92: 0 | H92: -5.861 | I92: 0.662 | J92: 34.061 | K92: 62.305
A93: 2019/12/04 16:00:00 | B93: 0.724 | C93: 2.131 | D93: 2.855 | E93: 21.824 | F93: 7.35 | G93: 0 | H93: -6.227 | I93: 0.575 | J93: 38.01 | K93: 61.193
A94: 2019/12/04 17:00:00 | B94: 0.882 | C94: 3.3 | D94: 4.181 | E94: 19.58 | F94: 5.352 | G94: 0 | H94: -6.493 | I94: 0.333 | J94: 56.1 | K94: 60.77
A95: 2019/12/04 18:00:00 | B95: 0.77 | C95: 2.726 | D95: 3.495 | E95: 19.09 | F95: 5.576 | G95: 0 | H95: -7.131 | I95: 0.489 | J95: 38.091 | K95: 62.29
A96: 2019/12/04 19:00:00 | B96: 0.611 | C96: 1.475 | D96: 2.086 | E96: 20.306 | F96: 4.463 | G96: 0 | H96: -8.207 | I96: 0.512 | J96: 86.022 | K96: 63.76
A97: 2019/12/04 20:00:00 | B97: 0.93 | C97: 3.035 | D97: 3.965 | E97: 20.131 | F97: 4.478 | G97: 0 | H97: -9.115 | I97: 0.46 | J97: 52.465 | K97: 62.241
A98: 2019/12/04 21:00:00 | B98: Z | C98: Z | D98: Z | E98: Z | F98: 4.143 | G98: 0 | H98: -9.508 | I98: 0.329 | J98: 72.854 | K98: 61.76
A99: 2019/12/04 22:00:00 | B99: 0.388 | C99: 2.008 | D99: 2.395 | E99: 20.916 | F99: 4.916 | G99: 0 | H99: -9.806 | I99: 0.224 | J99: 63.027 | K99: 62.071
A100: 2019/12/04 23:00:00 | B100: 0.145 | C100: 1.433 | D100: 1.578 | E100: 21.786 | F100: 7.273 | G100: 0 | H100: -9.719 | I100: 0.114 | J100: 40.78 | K100: 60.002
A101: 2019/12/05 00:00:00 | B101: 0.575 | C101: 1.754 | D101: 2.329 | E101: 21.037 | F101: 17.927 | G101: 0 | H101: -10.155 | I101: 0.482 | J101: 10.157 | K101: 63.333
A102: 2019/12/05 01:00:00 | B102: 0.225 | C102: 1.191 | D102: 1.416 | E102: 21.618 | F102: 4.706 | G102: 0 | H102: -10.778 | I102: 0.342 | J102: 75.647 | K102: 65.841
A103: 2019/12/05 02:00:00 | B103: 0.387 | C103: 0.863 | D103: 1.251 | E103: 22.83 | F103: 2.212 | G103: 0 | H103: -11.55 | I103: 0.378 | J103: 97.318 | K103: 66.923
A104: 2019/12/05 03:00:00 | B104: -0.109 | C104: 0.588 | D104: 0.478 | E104: 23.138 | F104: 2.281 | G104: 0 | H104: -11.872 | I104: 0.306 | J104: 111.72 | K104: 66.469
A105: 2019/12/05 04:00:00 | B105: -0.013 | C105: 0.76 | D105: 0.746 | E105: 22.874 | F105: 2.416 | G105: 0 | H105: -12.269 | I105: 0.175 | J105: 104.435 | K105: 65.919
A106: 2019/12/05 05:00:00 | B106: 0.173 | C106: 1.393 | D106: 1.566 | E106: 21.484 | F106: 2.825 | G106: 0 | H106: -12.11 | I106: 0.161 | J106: 110.191 | K106: 66.131
A107: 2019/12/05 06:00:00 | B107: 0.153 | C107: 2.248 | D107: 2.401 | E107: 20.845 | F107: 3.021 | G107: 0 | H107: -12.009 | I107: 0.15 | J107: 110.06 | K107: 65.528
A108: 2019/12/05 07:00:00 | B108: 0.263 | C108: 1.149 | D108: 1.41 | E108: 21.904 | F108: 2.711 | G108: 0 | H108: -12.08 | I108: 0.539 | J108: 134.827 | K108: 67.228
A109: 2019/12/05 08:00:00 | B109: 0.234 | C109: 1.029 | D109: 1.264 | E109: 22.598 | F109: 2.909 | G109: 0 | H109: -12.03 | I109: 0.741 | J109: 151.231 | K109: 67.379
A110: 2019/12/05 09:00:00 | B110: 0.147 | C110: 0.733 | D110: 0.879 | E110: 22.443 | F110: 3.344 | G110: 0 | H110: -11.743 | I110: 0.734 | J110: 159.599 | K110: 67.353
A111: 2019/12/05 10:00:00 | B111: 0.464 | C111: 1.152 | D111: 1.616 | E111: 20.562 | F111: 3.27 | G111: 0 | H111: -11.282 | I111: 0.986 | J111: 147.158 | K111: 69.358
A112: 2019/12/05 11:00:00 | B112: 0.508 | C112: 1.254 | D112: 1.76 | E112: 18.224 | F112: 3.363 | G112: 0 | H112: -10.5 | I112: 1.299 | J112: 143.418 | K112: 70.744
A113: 2019/12/05 12:00:00 | B113: 0.912 | C113: 1.397 | D113: 2.31 | E113: 17.218 | F113: 3.261 | G113: 0 | H113: -9.202 | I113: 1.502 | J113: 136.09 | K113: 69.046
A114: 2019/12/05 13:00:00 | B114: 0.703 | C114: 1.201 | D114: 1.904 | E114: 16.929 | F114: 2.939 | G114: 0 | H114: -7.296 | I114: 1.205 | J114: 132.174 | K114: 67.356
A115: 2019/12/05 14:00:00 | B115: 0.865 | C115: 1.96 | D115: 2.825 | E115: 23.191 | F115: 2.331 | G115: 0 | H115: -4.705 | I115: 0.552 | J115: 170.512 | K115: 62.501
A116: 2019/12/05 15:00:00 | B116: 0.585 | C116: 2.544 | D116: 3.127 | E116: 27.379 | F116: 3.478 | G116: 0 | H116: -3.344 | I116: 0.36 | J116: 233.221 | K116: 61.181
A117: 2019/12/05 16:00:00 | B117: 0.523 | C117: 2.812 | D117: 3.332 | E117: 27.035 | F117: 4.066 | G117: 0 | H117: -2.763 | I117: 0.535 | J117: 236.486 | K117: 62.758
A118: 2019/12/05 17:00:00 | B118: 0.68 | C118: 4.489 | D118: 5.169 | E118: 23.194 | F118: 4.956 | G118: 0 | H118: -3.588 | I118: 0.288 | J118: 216.618 | K118: 66.12
A119: 2019/12/05 18:00:00 | B119: 0.621 | C119: 5.986 | D119: 6.605 | E119: 20.672 | F119: 7.701 | G119: 0 | H119: -4.714 | I119: 0.202 | J119: 260.095 | K119: 70.342
A120: 2019/12/05 19:00:00 | B120: 0.576 | C120: 4.908 | D120: 5.482 | E120: 22.035 | F120: 39.682 | G120: 0 | H120: -5.468 | I120: 0.255 | J120: 257.04 | K120: 72.918
A121: 2019/12/05 20:00:00 | B121: Z | C121: Z | D121: Z | E121: Z | F121: 17.297 | G121: 0 | H121: -5.777 | I121: 0.445 | J121: 265.934 | K121: 74.135
A122: 2019/12/05 21:00:00 | B122: 0.706 | C122: 4.834 | D122: 5.539 | E122: 22.996 | F122: 7.595 | G122: 0 | H122: -5.383 | I122: 0.687 | J122: 260.858 | K122: 72.407
A123: 2019/12/05 22:00:00 | B123: 0.519 | C123: 4.806 | D123: 5.324 | E123: 22.389 | F123: 7.155 | G123: 0 | H123: -5.638 | I123: 0.731 | J123: 250.744 | K123: 71.036
A124: 2019/12/05 23:00:00 | B124: 0.562 | C124: 4.426 | D124: 4.987 | E124: 21.729 | F124: 7.589 | G124: 0 | H124: -5.993 | I124: 0.631 | J124: 249.446 | K124: 70.708
A125: 2019/12/06 00:00:00 | B125: 0.654 | C125: 4.787 | D125: 5.44 | E125: 20.557 | F125: 10.316 | G125: 0 | H125: -6.425 | I125: 0.628 | J125: 257.06 | K125: 71.227
A126: 2019/12/06 01:00:00 | B126: 0.812 | C126: 6.107 | D126: 6.919 | E126: 18.422 | F126: 11.101 | G126: 0 | H126: -7.1 | I126: 0.221 | J126: 262.013 | K126: 70.951
A127: 2019/12/06 02:00:00 | B127: 1.046 | C127: 7.208 | D127: 8.255 | E127: 16.024 | F127: 9.283 | G127: 0 | H127: -7.836 | I127: 0.679 | J127: 266.77 | K127: 71.581
A128: 2019/12/06 03:00:00 | B128: 0.852 | C128: 6.122 | D128: 6.974 | E128: 16.905 | F128: 10.155 | G128: 0 | H128: -7.998 | I128: 0.673 | J128: 257.731 | K128: 72.229
A129: 2019/12/06 04:00:00 | B129: 0.76 | C129: 6.459 | D129: 7.22 | E129: 16.452 | F129: 10.715 | G129: 0 | H129: -8.165 | I129: 0.711 | J129: 258.795 | K129: 70.953
A130: 2019/12/06 05:00:00 | B130: 0.662 | C130: 5.776 | D130: 6.436 | E130: 17.432 | F130: 11.946 | G130: 0 | H130: -8.254 | I130: 0.764 | J130: 252.44 | K130: 70.566
A131: 2019/12/06 06:00:00 | B131: 0.989 | C131: 7.31 | D131: 8.298 | E131: 15.724 | F131: 14.455 | G131: 0 | H131: -8.614 | I131: 0.558 | J131: 269.256 | K131: 70.327
A132: 2019/12/06 07:00:00 | B132: 1.396 | C132: 9.098 | D132: 10.493 | E132: 13.349 | F132: 16.262 | G132: 0 | H132: -9.449 | I132: 0.68 | J132: 257.905 | K132: 72.811
A133: 2019/12/06 08:00:00 | B133: 2.818 | C133: 12.975 | D133: 15.792 | E133: 11.11 | F133: 17.001 | G133: 0 | H133: -9.655 | I133: 0.393 | J133: 266.067 | K133: 72.833
A134: 2019/12/06 09:00:00 | B134: 7.318 | C134: 17.277 | D134: 24.594 | E134: 7.333 | F134: 17.277 | G134: 0 | H134: -9.767 | I134: 0.508 | J134: 266.406 | K134: 71.944
A135: 2019/12/06 10:00:00 | B135: 6.897 | C135: 16.435 | D135: 23.331 | E135: 7.391 | F135: 15.813 | G135: 0 | H135: -9.783 | I135: 0.709 | J135: 265.119 | K135: 70.963
A136: 2019/12/06 11:00:00 | B136: 2.622 | C136: 8.712 | D136: 11.334 | E136: 15.411 | F136: 10.46 | G136: 0 | H136: -8.402 | I136: 0.67 | J136: 256.512 | K136: 65.696
A137: 2019/12/06 12:00:00 | B137: 3.267 | C137: 7.788 | D137: 11.055 | E137: 17.726 | F137: 6.902 | G137: 0 | H137: -6.787 | I137: 0.978 | J137: 263.193 | K137: 62.053
A138: 2019/12/06 13:00:00 | B138: 3.191 | C138: 7.186 | D138: 10.377 | E138: 20.353 | F138: 6.488 | G138: 0 | H138: -5.291 | I138: 0.902 | J138: 265.423 | K138: 57.925
A139: 2019/12/06 14:00:00 | B139: 4.563 | C139: 7.353 | D139: 11.914 | E139: 22.12 | F139: 6.738 | G139: 0 | H139: -3.891 | I139: 0.494 | J139: 254.065 | K139: 54.282
A140: 2019/12/06 15:00:00 | B140: 1.136 | C140: 4.284 | D140: 5.421 | E140: 24.276 | F140: 5.715 | G140: 0 | H140: -2.72 | I140: 0.784 | J140: 182.53 | K140: 52.844
A141: 2019/12/06 16:00:00 | B141: 1.902 | C141: 6.35 | D141: 8.252 | E141: 21.854 | F141: 6.147 | G141: 0 | H141: -3.248 | I141: 0.546 | J141: 181.518 | K141: 56.365
A142: 2019/12/06 17:00:00 | B142: 0.872 | C142: 6.651 | D142: 7.523 | E142: 20.52 | F142: 9.309 | G142: 0 | H142: -4.859 | I142: 0.429 | J142: 169.166 | K142: 59.45
A143: 2019/12/06 18:00:00 | B143: 1.163 | C143: 11.626 | D143: 12.79 | E143: 18.223 | F143: 19.78 | G143: 0 | H143: -6.46 | I143: 0.313 | J143: 173.045 | K143: 61.104
A144: 2019/12/06 19:00:00 | B144: Z | C144: Z | D144: Z | E144: Z | F144: 19.234 | G144: 0 | H144: -7.616 | I144: 0.317 | J144: 167.905 | K144: 59.585
A145: 2019/12/06 20:00:00 | B145: 3.209 | C145: 12.151 | D145: 15.36 | E145: 13.152 | F145: 14.407 | G145: 0 | H145: -8.372 | I145: 0.121 | J145: 190.343 | K145: 59.659
A146: 2019/12/06 21:00:00 | B146: 1.309 | C146: 11.938 | D146: 13.246 | E146: 15.34 | F146: 15.697 | G146: 0 | H146: -7.508 | I146: 0.169 | J146: 251.046 | K146: 61.084
A147: 2019/12/06 22:00:00 | B147: 0.977 | C147: 8.975 | D147: 9.952 | E147: 22.811 | F147: 56.222 | G147: 0 | H147: -6.746 | I147: 0.138 | J147: 238.385 | K147: 64.553
A148: 2019/12/06 23:00:00 | B148: 0.991 | C148: 7.498 | D148: 8.489 | E148: 22.72 | F148: 18.359 | G148: 0 | H148: -5.975 | I148: 0.248 | J148: 274.882 | K148: 55.417
A149: 2019/12/07 00:00:00 | B149: 0.941 | C149: 7.848 | D149: 8.789 | E149: 14.305 | F149: 10.958 | G149: 0 | H149: -8.794 | I149: 0.31 | J149: 349.172 | K149: 63.855
A150: 2019/12/07 01:00:00 | B150: 1.282 | C150: 7.976 | D150: 9.257 | E150: 11.971 | F150: 16.607 | G150: 0 | H150: -10.707 | I150: 0.335 | J150: 357.732 | K150: 71.433
A151: 2019/12/07 02:00:00 | B151: 0.988 | C151: 8.151 | D151: 9.14 | E151: 11.892 | F151: 15.385 | G151: 0 | H151: -10.569 | I151: 0.18 | J151: 339.108 | K151: 70.537
A152: 2019/12/07 03:00:00 | B152: 1.668 | C152: 7.942 | D152: 9.61 | E152: 12.428 | F152: 18.902 | G152: 0 | H152: -10.425 | I152: 0.522 | J152: 324.895 | K152: 71.772
A153: 2019/12/07 04:00:00 | B153: 0.767 | C153: 5.189 | D153: 5.958 | E153: 13.98 | F153: 15.715 | G153: 0 | H153: -9.465 | I153: 0.494 | J153: 349.028 | K153: 72.54
A154: 2019/12/07 05:00:00 | B154: 1.061 | C154: 9.51 | D154: 10.573 | E154: 9.767 | F154: 14.632 | G154: 0 | H154: -8.35 | I154: 0.199 | J154: 309.038 | K154: 69.767
A155: 2019/12/07 06:00:00 | B155: 0.908 | C155: 6.021 | D155: 6.93 | E155: 11.218 | F155: 13.049 | G155: 0 | H155: -8.42 | I155: 0.348 | J155: 333.359 | K155: 72.089
A156: 2019/12/07 07:00:00 | B156: 1.069 | C156: 4.491 | D156: 5.561 | E156: 11.616 | F156: 13.175 | G156: 0 | H156: -9.294 | I156: 0.751 | J156: 3.86 | K156: 74.602
A157: 2019/12/07 08:00:00 | B157: 0.523 | C157: 3.721 | D157: 4.245 | E157: 18.717 | F157: 7.218 | G157: 0 | H157: -8.826 | I157: 1.159 | J157: 15.116 | K157: 71.848
A158: 2019/12/07 09:00:00 | B158: 0.424 | C158: 2.664 | D158: 3.089 | E158: 23.207 | F158: 3.191 | G158: 0 | H158: -9.482 | I158: 1.426 | J158: 12.009 | K158: 71.144
A159: 2019/12/07 10:00:00 | B159: 0.526 | C159: 2.629 | D159: 3.157 | E159: 21.682 | F159: 3.262 | G159: 0 | H159: -10.396 | I159: 1.271 | J159: 13.888 | K159: 70.694
A160: 2019/12/07 11:00:00 | B160: 0.761 | C160: 3.613 | D160: 4.376 | E160: 18.252 | F160: 3.85 | G160: 0 | H160: -11.139 | I160: 1.396 | J160: 14.999 | K160: 69.501
A161: 2019/12/07 12:00:00 | B161: 1.138 | C161: 3.636 | D161: 4.776 | E161: 18.738 | F161: 3.786 | G161: 0 | H161: -11.832 | I161: 1.51 | J161: 10.958 | K161: 69.823
A162: 2019/12/07 13:00:00 | B162: 1.432 | C162: 3.978 | D162: 5.41 | E162: 20.007 | F162: 3.509 | G162: 0 | H162: -11.896 | I162: 1.601 | J162: 6.534 | K162: 68.16
A163: 2019/12/07 14:00:00 | B163: 2.038 | C163: 4.563 | D163: 6.603 | E163: 18.761 | F163: 4.4 | G163: 0 | H163: -12.125 | I163: 1.791 | J163: 2.222 | K163: 66.74
A164: 2019/12/07 15:00:00 | B164: 1.278 | C164: 3.5 | D164: 4.779 | E164: 19.896 | F164: 3.879 | G164: 0 | H164: -12.876 | I164: 1.708 | J164: 5.888 | K164: 64.116
A165: 2019/12/07 16:00:00 | B165: 0.719 | C165: 1.905 | D165: 2.627 | E165: 23.363 | F165: 3.465 | G165: 0 | H165: -13.483 | I165: 1.367 | J165: 9.973 | K165: 61.944
A166: 2019/12/07 17:00:00 | B166: 0.828 | C166: 2.327 | D166: 3.157 | E166: 22.988 | F166: 3.378 | G166: 0 | H166: -14.56 | I166: 1.007 | J166: 11.653 | K166: 63.608
A167: 2019/12/07 18:00:00 | B167: Z | C167: Z | D167: Z | E167: Z | F167: 6.82 | G167: 0 | H167: -15.798 | I167: 0.564 | J167: 17.986 | K167: 62.022
A168: 2019/12/07 19:00:00 | B168: 0.234 | C168: 1.332 | D168: 1.569 | E168: 27.983 | F168: 4.75 | G168: 0 | H168: -16.808 | I168: 0.798 | J168: 14.745 | K168: 62.007
A169: 2019/12/07 20:00:00 | B169: 0.397 | C169: 0.961 | D169: 1.36 | E169: 29.19 | F169: 5.737 | G169: 0 | H169: -18.048 | I169: 1.018 | J169: 30.359 | K169: 62.388
A170: 2019/12/07 21:00:00 | B170: 0.432 | C170: 0.985 | D170: 1.418 | E170: 29.466 | F170: 6.91 | G170: 0 | H170: -19.294 | I170: 0.95 | J170: 19.973 | K170: 62.12
A171: 2019/12/07 22:00:00 | B171: 0.352 | C171: 0.792 | D171: 1.147 | E171: 29.228 | F171: 6.067 | G171: 0 | H171: -20.256 | I171: 1.052 | J171: 16.559 | K171: 62.55
A172: 2019/12/07 23:00:00 | B172: 0.426 | C172: 0.995 | D172: 1.423 | E172: 28.439 | F172: 6.774 | G172: 0 | H172: -20.993 | I172: 0.901 | J172: 10.902 | K172: 64.127
A173: 2019/12/08 00:00:00 | B173: 0.858 | C173: 2.189 | D173: 3.049 | E173: 26.381 | F173: 6.923 | G173: 0 | H173: -21.405 | I173: 0.552 | J173: 351.197 | K173: 64.655
A174: 2019/12/08 01:00:00 | B174: 0.796 | C174: 2.297 | D174: 3.096 | E174: 25.066 | F174: 5.627 | G174: 0 | H174: -21.883 | I174: 0.476 | J174: 359.647 | K174: 64.96
A175: 2019/12/08 02:00:00 | B175: 0.614 | C175: 1.723 | D175: 2.338 | E175: 25.848 | F175: 5.384 | G175: 0 | H175: -21.758 | I175: 0.137 | J175: 90.734 | K175: 62.192
A176: 2019/12/08 03:00:00 | B176: 0.603 | C176: 2.139 | D176: 2.745 | E176: 25.329 | F176: 3.752 | G176: 0 | H176: -22.339 | I176: 0.508 | J176: 19.315 | K176: 63.672
A177: 2019/12/08 04:00:00 | B177: 0.716 | C177: 1.019 | D177: 1.737 | E177: 26.62 | F177: 6.526 | G177: 0 | H177: -22.657 | I177: 0.891 | J177: 3.17 | K177: 66.208
A178: 2019/12/08 05:00:00 | B178: 0.695 | C178: 2.25 | D178: 2.946 | E178: 25.123 | F178: 4.255 | G178: 0 | H178: -22.674 | I178: 0.319 | J178: 4.943 | K178: 66.299
A179: 2019/12/08 06:00:00 | B179: 0.789 | C179: 3.631 | D179: 4.421 | E179: 23.203 | F179: 4.633 | G179: 0 | H179: -22.689 | I179: 0.134 | J179: 335.063 | K179: 66.005
A180: 2019/12/08 07:00:00 | B180: 0.475 | C180: 7.081 | D180: 7.557 | E180: 18.681 | F180: 6.119 | G180: 0 | H180: -22.565 | I180: 0.192 | J180: 286.785 | K180: 63.444
A181: 2019/12/08 08:00:00 | B181: 1.09 | C181: 10.126 | D181: 11.218 | E181: 12.816 | F181: 10.467 | G181: 0 | H181: -22.984 | I181: 0.285 | J181: 212.443 | K181: 64.065
A182: 2019/12/08 09:00:00 | B182: 0.63 | C182: 3.871 | D182: 4.502 | E182: 16.881 | F182: 4.998 | G182: 0 | H182: -23.671 | I182: 0.468 | J182: 185.409 | K182: 65.686
A183: 2019/12/08 10:00:00 | B183: 1.352 | C183: 6.597 | D183: 7.949 | E183: 14.358 | F183: 7.441 | G183: 0 | H183: -23.55 | I183: 0.644 | J183: 290.303 | K183: 65.662
A184: 2019/12/08 11:00:00 | B184: 1.391 | C184: 3.623 | D184: 5.015 | E184: 19.674 | F184: 14.349 | G184: 0 | H184: -22.34 | I184: 0.477 | J184: 189.377 | K184: 62.909
A185: 2019/12/08 12:00:00 | B185: 0.57 | C185: 0.952 | D185: 1.522 | E185: 22.782 | F185: 4.131 | G185: 0 | H185: -20.65 | I185: 0.474 | J185: 167.882 | K185: 60.498
A186: 2019/12/08 13:00:00 | B186: 1.024 | C186: 1.358 | D186: 2.382 | E186: 25.211 | F186: 2.772 | G186: 0 | H186: -18.587 | I186: 0.371 | J186: 231.762 | K186: 58.918
A187: 2019/12/08 14:00:00 | B187: 0.862 | C187: 1.712 | D187: 2.575 | E187: 25.891 | F187: 2.596 | G187: 0 | H187: -16.693 | I187: 0.566 | J187: 254.303 | K187: 58.988
A188: 2019/12/08 15:00:00 | B188: 0.699 | C188: 0.844 | D188: 1.543 | E188: 27.497 | F188: 2.27 | G188: 0 | H188: -15.596 | I188: 0.73 | J188: 174.016 | K188: 58.964
A189: 2019/12/08 16:00:00 | B189: 0.762 | C189: 1.286 | D189: 2.048 | E189: 28.257 | F189: 1.495 | G189: 0 | H189: -14.444 | I189: 0.347 | J189: 226.454 | K189: 52.732
A190: 2019/12/08 17:00:00 | B190: Z | C190: Z | D190: Z | E190: Z | F190: 4.911 | G190: 0 | H190: -14.317 | I190: 0.348 | J190: 223.825 | K190: 53.397
A191: 2019/12/08 18:00:00 | B191: 0.528 | C191: 2.201 | D191: 2.729 | E191: 27.72 | F191: 9.074 | G191: 0 | H191: -13.925 | I191: 0.389 | J191: 185.46 | K191: 54.398
A192: 2019/12/08 19:00:00 | B192: 0.636 | C192: 2.504 | D192: 3.14 | E192: 26.801 | F192: 10.81 | G192: 0 | H192: -13.157 | I192: 0.229 | J192: 242.998 | K192: 52.801
A193: 2019/12/08 20:00:00 | B193: 1.101 | C193: 3.981 | D193: 5.082 | E193: 23.16 | F193: 1.774 | G193: 0 | H193: -13.245 | I193: 1.031 | J193: 270.578 | K193: 56.109
A194: 2019/12/08 21:00:00 | B194: 0.643 | C194: 2.913 | D194: 3.557 | E194: 22.34 | F194: 1.544 | G194: 0 | H194: -13.186 | I194: 0.946 | J194: 260.167 | K194: 60.401
A195: 2019/12/08 22:00:00 | B195: 0.972 | C195: 3.022 | D195: 3.994 | E195: 22.104 | F195: 1.595 | G195: 0 | H195: -12.822 | I195: 0.564 | J195: 250.398 | K195: 62.306
A196: 2019/12/08 23:00:00 | B196: 1.014 | C196: 4.353 | D196: 5.366 | E196: 20.417 | F196: 4.366 | G196: 0 | H196: -12.066 | I196: 0.453 | J196: 263.488 | K196: 63.261
A197: 2019/12/09 00:00:00 | B197: 0.758 | C197: 3.595 | D197: 4.353 | E197: 21.169 | F197: 1.839 | G197: 0 | H197: -11.082 | I197: 0.982 | J197: 261.566 | K197: 64.574
A198: 2019/12/09 01:00:00 | B198: 0.667 | C198: 3.464 | D198: 4.131 | E198: 20.4 | F198: 1.995 | G198: 0 | H198: -10.693 | I198: 1.327 | J198: 266.522 | K198: 65.209
A199: 2019/12/09 02:00:00 | B199: 0.757 | C199: 3.801 | D199: 4.558 | E199: 18.946 | F199: 2.333 | G199: 0 | H199: -11.059 | I199: 2.041 | J199: 282.622 | K199: 66.957
A200: 2019/12/09 03:00:00 | B200: 0.677 | C200: 3.408 | D200: 4.085 | E200: 18.519 | F200: 2.963 | G200: 0 | H200: -11.147 | I200: 1.908 | J200: 294.31 | K200: 67.481
A201: 2019/12/09 04:00:00 | B201: 0.515 | C201: 3.194 | D201: 3.708 | E201: 18.169 | F201: 3.61 | G201: 0 | H201: -11.051 | I201: 2.128 | J201: 302.684 | K201: 68.14
... 556 more rows
